Workbook

Sheet Imputations des activités
A1: Imputations des activités du CQ
A3: JANVIER
B5: AC | C5: MP | D5: PSO | E5: PFC | F5: STA | G5: ECH | H5: ENV | I5: NET | J5: LIMS | K5: PROJET | L5: ESS | M5: AQ | N5: AQ BIL | O5: AQ FORM | P5: AQ INFO | Q5: AQ REDAC | R5: AQ VERIF | S5: AQ REACT | T5: AQ LEAN | U5: AQ MET | V5: CAP REELLE | W5: CONGE | X5: ABSENCES | Y5: CAP. THEO. | Z5: HS
A6: PRELEV. AC | B6: 143 | C6: 117.25 | D6: 44.75 | E6: 0 | F6: 0 | G6: 4 | H6: 41.5 | I6: 0 | J6: 4 | K6: 0 | L6: 2 | M6: 47 | N6: 0 | O6: 5 | P6: 6 | Q6: 13 | R6: 0 | S6: 0 | T6: 9.5 | U6: 13.5 | V6: =SUM(B6:M6) -> 403.5 | W6: 54 | X6: 10.5 | Y6: =SUM(V6:X6)-Z6 -> 468
A7: PHYSICO-CHIMIE | B7: 11.75 | C7: 480 | D7: 488.5 | E7: 0 | F7: 205.5 | G7: 0 | H7: 0 | I7: 2.75 | J7: 55.25 | K7: 110.75 | L7: 181.75 | M7: 992 | N7: 33.75 | O7: 33.75 | P7: 278 | Q7: 40.75 | R7: 231.5 | S7: 100 | T7: 39.5 | U7: 234.75 | V7: =SUM(B7:M7) -> 2528.25 | W7: 133.5 | X7: 10.75 | Y7: =SUM(V7:X7)-Z7 -> 2672.5
A8: AGENT DE LAVERIE | B8: 0 | C8: 0 | D8: 0 | E8: 0 | F8: 0 | G8: 0 | H8: 0 | I8: 47.75 | J8: 0 | K8: 0 | L8: 0 | M8: 95.75 | N8: 2 | O8: 12.5 | P8: 10.75 | Q8: 0 | R8: 0 | S8: 49 | T8: 2.75 | U8: 18.75 | V8: 143.5 | W8: 16 | X8: 0 | Y8: 159.5
A9: MICROBIOLOGIE | B9: 0 | C9: 55 | D9: 197.55 | E9: 0 | F9: 7.5 | G9: 16.75 | H9: 142.25 | I9: 38.25 | J9: 17.75 | K9: 0 | L9: 99.8 | M9: 477.9 | N9: 64.5 | O9: 96.25 | P9: 44.75 | Q9: 21.75 | R9: 73 | S9: 102.65 | T9: 19 | U9: 56 | V9: 1052.75 | W9: 124 | X9: 0 | Y9: 1176.75
A10: CONT FINAL | B10: 0 | C10: 0 | D10: 0 | E10: 118.5 | F10: 0 | G10: 0 | H10: 0 | I10: 0 | J10: 0 | K10: 0 | L10: 0 | M10: 26 | N10: 7.25 | O10: 0 | P10: 1.75 | Q10: 0.25 | R10: 0.75 | S10: 0 | T10: 14.5 | U10: 1.5 | V10: 144.5 | W10: 11.5 | X10: 0 | Y10: 156
A11: TOTAL | B11: =SUM(B6:B10) -> 154.75 | C11: =SUM(C6:C10) -> 652.25 | D11: 730.8 | E11: 118.5 | F11: 213 | G11: 20.75 | H11: 183.75 | I11: 88.75 | J11: 77 | K11: 110.75 | L11: 283.55 | M11: 1638.65 | N11: 107.5 | O11: 147.5 | P11: 341.25 | Q11: 75.75 | R11: 305.25 | S11: 251.65 | T11: 85.25 | U11: 324.5 | V11: 4272.5 | W11: 339 | X11: 21.25 | Y11: 4632.75 | Z11: 0
A12: DISP. LABOS EN % : | B12: =100*B11/V11 -> 3.62200117 | C12: =100*C11/V11 -> 15.26623757 | D12: =100*D11/V11 -> 17.10473961 | E12: =100*E11/V11 -> 2.773551785 | F12: =100*F11/V11 -> 4.985371562 | G12: =100*G11/V11 -> 0.4856641311 | H12: =100*H11/V11 -> 4.300760679 | I12: =100*I11/V11 -> 2.077238151 | J12: =100*J11/V11 -> 1.802223523 | K12: =100*K11/V11 -> 2.592159157 | L12: =100*L11/V11 -> 6.636629608 | M12: =100*M11/V11 -> 38.35342305 | N12: =100*N11/V11 -> 2.516091281 | O12: =100*O11/V11 -> 3.452311293 | P12: =100*P11/V11 -> 7.987126975 | Q12: =100*Q11/V11 -> 1.772966647 | R12: =100*R11/V11 -> 7.144528964 | S12: =100*S11/V11 -> 5.889994149 | T12: =100*T11/V11 -> 1.9953189 | U12: =100*U11/V11 -> 7.595084845 | V12: =100*V11/V11 -> 100 | W12: =100*W11/W11 -> 100 | X12: =100*X11/V11 -> 0.4973668812 | Y12: =100*Y11/V11 -> 108.4318315 | Z12: =100*Z11/V11 -> 0
A14: FEVRIER
B16: AC | C16: MP | D16: PSO | E16: PFC | F16: STA | G16: ECH | H16: ENV | I16: NET | J16: LIMS | K16: PROJET | L16: ESS | M16: AQ | N16: AQ BIL | O16: AQ FORM | P16: AQ INFO | Q16: AQ REDAC | R16: AQ VERIF | S16: AQ REACT | T16: AQ LEAN | U16: AQ MET | V16: CAP REELLE | W16: CONGE | X16: ABSENCES | Y16: CAP. THEO. | Z16: HS
A17: PRELEV. AC | B17: 153.5 | C17: 134.5 | D17: 79.5 | E17: 0 | F17: 0 | G17: 4 | H17: 57 | I17: 0 | J17: 6 | K17: 0 | L17: 2 | M17: 47.5 | N17: 0 | O17: 0 | P17: 4.5 | Q17: 20.5 | R17: 0 | S17: 0 | T17: 5 | U17: 17.5 | V17: =SUM(B17:M17) -> 484 | W17: 0 | X17: 8 | Y17: =SUM(V17:X17)-Z17 -> 492
A18: PHYSICO-CHIMIE | B18: 9.75 | C18: 350.75 | D18: 668.5 | E18: 0 | F18: 129.25 | G18: 0 | H18: 0 | I18: 0 | J18: 13 | K18: 39.5 | L18: 199.75 | M18: 1010.25 | N18: 38.25 | O18: 21.25 | P18: 308 | Q18: 96 | R18: 265.5 | S18: 72.25 | T18: 34.5 | U18: 174.5 | V18: 2420.75 | W18: 296.5 | X18: 23.75 | Y18: 2741
A19: AGENT DE LAVERIE | B19: 0 | C19: 0 | D19: 0 | E19: 0 | F19: 0 | G19: 0 | H19: 0 | I19: 41.5 | J19: 0 | K19: 0 | L19: 0 | M19: 122 | N19: 24.5 | O19: 4 | P19: 2.25 | Q19: 1.75 | R19: 0 | S19: 69.75 | T19: 1.75 | U19: 18 | V19: 163.5 | W19: 0 | X19: 0 | Y19: 163.5
A20: MICROBIOLOGIE | B20: 0 | C20: 79.25 | D20: 258.25 | E20: 0 | F20: 4 | G20: 10.5 | H20: 209.5 | I20: 45 | J20: 34.75 | K20: 3 | L20: 55 | M20: 522.75 | N20: 55 | O20: 130.25 | P20: 64 | Q20: 77.5 | R20: 81 | S20: 45.25 | T20: 10.5 | U20: 59.25 | V20: 1222 | W20: 92 | X20: 10.5 | Y20: 1324.5
A21: CONT FINAL | B21: 0 | C21: 0 | D21: 0 | E21: 133 | F21: 0 | G21: 0 | H21: 0 | I21: 0 | J21: 4 | K21: 0 | L21: 0 | M21: 19 | N21: 2 | O21: 0 | P21: 0.5 | Q21: 0 | R21: 0 | S21: 0 | T21: 15.25 | U21: 1.25 | V21: 156 | W21: 8 | X21: 0 | Y21: 164
A22: TOTAL | B22: =SUM(B17:B21) -> 163.25 | C22: =SUM(C17:C21) -> 564.5 | D22: 1006.25 | E22: 133 | F22: 133.25 | G22: 14.5 | H22: 266.5 | I22: 86.5 | J22: 57.75 | K22: 42.5 | L22: 256.75 | M22: 1721.5 | N22: 119.75 | O22: 155.5 | P22: 379.25 | Q22: 195.75 | R22: 346.5 | S22: 187.25 | T22: 67 | U22: 270.5 | V22: 4446.25 | W22: 396.5 | X22: 42.25 | Y22: 4885 | Z22: 0
A23: DISP. LABOS EN % : | B23: =100*B22/V22 -> 3.671633399 | C23: =100*C22/V22 -> 12.69609221 | D23: =100*D22/V22 -> 22.63143098 | E23: =100*E22/V22 -> 2.991284791 | F23: =100*F22/V22 -> 2.996907506 | G23: =100*G22/V22 -> 0.3261175148 | H23: =100*H22/V22 -> 5.993815013 | I23: =100*I22/V22 -> 1.945459657 | J23: =100*J22/V22 -> 1.298847343 | K23: =100*K22/V22 -> 0.9558616812 | L23: =100*L22/V22 -> 5.774529098 | M23: =100*M22/V22 -> 38.7180208 | N23: =100*N22/V22 -> 2.693280855 | O23: =100*O22/V22 -> 3.49732921 | P23: =100*P22/V22 -> 8.529659826 | Q23: =100*Q22/V22 -> 4.402586449 | R23: =100*R22/V22 -> 7.79308406 | S23: =100*S22/V22 -> 4.211414113 | T23: =100*T22/V22 -> 1.506887827 | U23: =100*U22/V22 -> 6.083778465 | V23: =100*V22/V22 -> 100 | W23: =100*W22/W22 -> 100 | X23: =100*X22/V22 -> 0.9502389654 | Y23: =100*Y22/V22 -> 109.8678662 | Z23: =100*Z22/V22 -> 0
A25: MARS
B27: AC | C27: MP | D27: PSO | E27: PFC | F27: STA | G27: ECH | H27: ENV | I27: NET | J27: LIMS | K27: PROJET | L27: ESS | M27: AQ | N27: AQ BIL | O27: AQ FORM | P27: AQ INFO | Q27: AQ REDAC | R27: AQ VERIF | S27: AQ REACT | T27: AQ LEAN | U27: AQ MET | V27: CAP REELLE | W27: CONGE | X27: ABSENCES | Y27: CAP. THEO. | Z27: HS
A28: PRELEV. AC | B28: 164 | C28: 135 | D28: 65 | E28: 0 | F28: 0 | G28: 0 | H28: 54.5 | I28: 0 | J28: 12.5 | K28: 0 | L28: 0 | M28: 29 | N28: 0 | O28: 0 | P28: 3.25 | Q28: 13 | R28: 0 | S28: 0 | T28: 5.75 | U28: 7 | V28: =SUM(B28:M28) -> 460 | W28: 48 | X28: 8 | Y28: =SUM(V28:X28)-Z28 -> 516
A29: PHYSICO-CHIMIE | B29: 11 | C29: 389 | D29: 604 | E29: 0 | F29: 230.5 | G29: 0 | H29: 0 | I29: 0 | J29: 68 | K29: 41.5 | L29: 268.25 | M29: 954.25 | N29: 23.25 | O29: 24.5 | P29: 286.75 | Q29: 37.5 | R29: 255.5 | S29: 103.5 | T29: 27 | U29: 196.25 | V29: 2566.5 | W29: 316.25 | X29: 9.5 | Y29: 2892.25
A30: AGENT DE LAVERIE | B30: 0 | C30: 0 | D30: 0 | E30: 0 | F30: 0 | G30: 0 | H30: 0 | I30: 27.5 | J30: 0 | K30: 0 | L30: 0 | M30: 129 | N30: 0 | O30: 12 | P30: 17 | Q30: 0 | R30: 0 | S30: 64.25 | T30: 3.75 | U30: 32 | V30: 156.5 | W30: 0 | X30: 0 | Y30: 156.5
A31: MICROBIOLOGIE | B31: 0 | C31: 64.75 | D31: 270.75 | E31: 0 | F31: 13.25 | G31: 17.25 | H31: 239 | I31: 38 | J31: 43.5 | K31: 0 | L31: 48 | M31: 500.75 | N31: 21.75 | O31: 96 | P31: 69.5 | Q31: 106.75 | R31: 86 | S31: 88.25 | T31: 5 | U31: 27.5 | V31: 1235.25 | W31: 151 | X31: 0 | Y31: 1386.25
A32: CONT FINAL | B32: 0 | C32: 0 | D32: 0 | E32: 114 | F32: 0 | G32: 0 | H32: 0 | I32: 0 | J32: 0 | K32: 0 | L32: 0 | M32: 16.5 | N32: 1.75 | O32: 0 | P32: 1.5 | Q32: 0 | R32: 1.75 | S32: 0 | T32: 10.75 | U32: 0.75 | V32: 130.5 | W32: 43 | X32: 0 | Y32: 173.5
A33: TOTAL | B33: =SUM(B28:B32) -> 175 | C33: =SUM(C28:C32) -> 588.75 | D33: 939.75 | E33: 114 | F33: 243.75 | G33: 17.25 | H33: 293.5 | I33: 65.5 | J33: 124 | K33: 41.5 | L33: 316.25 | M33: 1629.5 | N33: 46.75 | O33: 132.5 | P33: 378 | Q33: 157.25 | R33: 343.25 | S33: 256 | T33: 52.25 | U33: 263.5 | V33: 4548.75 | W33: 558.25 | X33: 17.5 | Y33: 5124.5 | Z33: 0
A34: DISP. LABOS EN % : | B34: =100*B33/V33 -> 3.847210772 | C34: =100*C33/V33 -> 12.94311624 | D34: =100*D33/V33 -> 20.65952185 | E34: =100*E33/V33 -> 2.506183017 | F34: =100*F33/V33 -> 5.358615004 | G34: =100*G33/V33 -> 0.3792250618 | H34: =100*H33/V33 -> 6.452322067 | I34: =100*I33/V33 -> 1.439956032 | J34: =100*J33/V33 -> 2.726023633 | K34: =100*K33/V33 -> 0.9123385545 | L34: =100*L33/V33 -> 6.952459467 | M34: =100*M33/V33 -> 35.8230283 | N34: =100*N33/V33 -> 1.027754878 | O34: =100*O33/V33 -> 2.912888156 | P34: =100*P33/V33 -> 8.309975268 | Q34: =100*Q33/V33 -> 3.45699368 | R34: =100*R33/V33 -> 7.546029129 | S34: =100*S33/V33 -> 5.627919758 | T34: =100*T33/V33 -> 1.148667216 | U34: =100*U33/V33 -> 5.79280022 | V34: =100*V33/V33 -> 100 | W34: =100*W33/W33 -> 100 | X34: =100*X33/V33 -> 0.3847210772 | Y34: =100*Y33/V33 -> 112.6573234 | Z34: =100*Z33/V33 -> 0
A36: AVRIL
B38: AC | C38: MP | D38: PSO | E38: PFC | F38: STA | G38: ECH | H38: ENV | I38: NET | J38: LIMS | K38: PROJET | L38: ESS | M38: AQ | N38: AQ BIL | O38: AQ FORM | P38: AQ INFO | Q38: AQ REDAC | R38: AQ VERIF | S38: AQ REACT | T38: AQ LEAN | U38: AQ MET | V38: CAP REELLE | W38: CONGE | X38: ABSENCES | Y38: CAP. THEO. | Z38: HS
A39: PRELEV. AC | B39: 0 | C39: 0 | D39: 0 | E39: 0 | F39: 0 | G39: 0 | H39: 0 | I39: 0 | J39: 0 | K39: 0 | L39: 0 | M39: 0 | N39: 0 | O39: 0 | P39: 0 | Q39: 0 | R39: 0 | S39: 0 | T39: 0 | U39: 0 | V39: =SUM(B39:M39) -> 0 | W39: 0 | X39: 0 | Y39: =SUM(V39:X39)-Z39 -> 0
A40: PHYSICO-CHIMIE | B40: 1 | C40: 2 | D40: 3 | E40: 0 | F40: 4 | G40: 0 | H40: 0 | I40: 5 | J40: 6 | K40: 7 | L40: 8 | M40: 100 | N40: 9 | O40: 10 | P40: 11 | Q40: 12 | R40: 13 | S40: 14 | T40: 15 | U40: 16 | V40: 136 | W40: 17 | X40: 18 | Y40: 171
A41: AGENT DE LAVERIE | B41: 0 | C41: 0 | D41: 0 | E41: 0 | F41: 0 | G41: 0 | H41: 0 | I41: 0 | J41: 0 | K41: 0 | L41: 0 | M41: 0 | N41: 0 | O41: 0 | P41: 0 | Q41: 0 | R41: 0 | S41: 0 | T41: 0 | U41: 0 | V41: 0 | W41: 0 | X41: 0 | Y41: 0
A42: MICROBIOLOGIE | B42: 0 | C42: 0 | D42: 0 | E42: 0 | F42: 0 | G42: 0 | H42: 0 | I42: 0 | J42: 0 | K42: 0 | L42: 0 | M42: 0 | N42: 0 | O42: 0 | P42: 0 | Q42: 0 | R42: 0 | S42: 0 | T42: 0 | U42: 0 | V42: 0 | W42: 0 | X42: 0 | Y42: 0
A43: CONT FINAL | B43: 0 | C43: 0 | D43: 0 | E43: 0 | F43: 0 | G43: 0 | H43: 0 | I43: 0 | J43: 0 | K43: 0 | L43: 0 | M43: 0 | N43: 0 | O43: 0 | P43: 0 | Q43: 0 | R43: 0 | S43: 0 | T43: 0 | U43: 0 | V43: 0 | W43: 0 | X43: 0 | Y43: 0
A44: TOTAL | B44: =SUM(B39:B43) -> 1 | C44: =SUM(C39:C43) -> 2 | D44: 3 | E44: 0 | F44: 4 | G44: 0 | H44: 0 | I44: 5 | J44: 6 | K44: 7 | L44: 8 | M44: 100 | N44: 9 | O44: 10 | P44: 11 | Q44: 12 | R44: 13 | S44: 14 | T44: 15 | U44: 16 | V44: 136 | W44: 17 | X44: 18 | Y44: 171 | Z44: 0
A45: DISP. LABOS EN % : | B45: =100*B44/V44 -> 0.7352941176 | C45: =100*C44/V44 -> 1.470588235 | D45: =100*D44/V44 -> 2.205882353 | E45: =100*E44/V44 -> 0 | F45: =100*F44/V44 -> 2.941176471 | G45: =100*G44/V44 -> 0 | H45: =100*H44/V44 -> 0 | I45: =100*I44/V44 -> 3.676470588 | J45: =100*J44/V44 -> 4.411764706 | K45: =100*K44/V44 -> 5.147058824 | L45: =100*L44/V44 -> 5.882352941 | M45: =100*M44/V44 -> 73.52941176 | N45: =100*N44/V44 -> 6.617647059 | O45: =100*O44/V44 -> 7.352941176 | P45: =100*P44/V44 -> 8.088235294 | Q45: =100*Q44/V44 -> 8.823529412 | R45: =100*R44/V44 -> 9.558823529 | S45: =100*S44/V44 -> 10.29411765 | T45: =100*T44/V44 -> 11.02941176 | U45: =100*U44/V44 -> 11.76470588 | V45: =100*V44/V44 -> 100 | W45: =100*W44/W44 -> 100 | X45: =100*X44/V44 -> 13.23529412 | Y45: =100*Y44/V44 -> 125.7352941 | Z45: =100*Z44/V44 -> 0
A47: MAI
B49: AC | C49: MP | D49: PSO | E49: PFC | F49: STA | G49: ECH | H49: ENV | I49: NET | J49: LIMS | K49: PROJET | L49: ESS | M49: AQ | N49: AQ BIL | O49: AQ FORM | P49: AQ INFO | Q49: AQ REDAC | R49: AQ VERIF | S49: AQ REACT | T49: AQ LEAN | U49: AQ MET | V49: CAP REELLE | W49: CONGE | X49: ABSENCES | Y49: CAP. THEO. | Z49: HS
A50: PRELEV. AC | B50: 0 | C50: 0 | D50: 0 | E50: 0 | F50: 0 | G50: 0 | H50: 0 | I50: 0 | J50: 0 | K50: 0 | L50: 0 | M50: 0 | N50: 0 | O50: 0 | P50: 0 | Q50: 0 | R50: 0 | S50: 0 | T50: 0 | U50: 0 | V50: =SUM(B50:M50) -> 0 | W50: 0 | X50: 0 | Y50: =SUM(V50:X50)-Z50 -> 0
A51: PHYSICO-CHIMIE | B51: 0 | C51: 0 | D51: 0 | E51: 0 | F51: 0 | G51: 0 | H51: 0 | I51: 0 | J51: 0 | K51: 0 | L51: 0 | M51: 0 | N51: 0 | O51: 0 | P51: 0 | Q51: 0 | R51: 0 | S51: 0 | T51: 0 | U51: 0 | V51: 0 | W51: 0 | X51: 0 | Y51: 0
A52: AGENT DE LAVERIE | B52: 0 | C52: 0 | D52: 0 | E52: 0 | F52: 0 | G52: 0 | H52: 0 | I52: 0 | J52: 0 | K52: 0 | L52: 0 | M52: 0 | N52: 0 | O52: 0 | P52: 0 | Q52: 0 | R52: 0 | S52: 0 | T52: 0 | U52: 0 | V52: 0 | W52: 0 | X52: 0 | Y52: 0
A53: MICROBIOLOGIE | B53: 0 | C53: 0 | D53: 0 | E53: 0 | F53: 0 | G53: 0 | H53: 0 | I53: 0 | J53: 0 | K53: 0 | L53: 0 | M53: 0 | N53: 0 | O53: 0 | P53: 0 | Q53: 0 | R53: 0 | S53: 0 | T53: 0 | U53: 0 | V53: 0 | W53: 0 | X53: 0 | Y53: 0
A54: CONT FINAL | B54: 0 | C54: 0 | D54: 0 | E54: 0 | F54: 0 | G54: 0 | H54: 0 | I54: 0 | J54: 0 | K54: 0 | L54: 0 | M54: 0 | N54: 0 | O54: 0 | P54: 0 | Q54: 0 | R54: 0 | S54: 0 | T54: 0 | U54: 0 | V54: 0 | W54: 0 | X54: 0 | Y54: 0
A55: TOTAL | B55: =SUM(B50:B54) -> 0 | C55: =SUM(C50:C54) -> 0 | D55: 0 | E55: 0 | F55: 0 | G55: 0 | H55: 0 | I55: 0 | J55: 0 | K55: 0 | L55: 0 | M55: 0 | N55: 0 | O55: 0 | P55: 0 | Q55: 0 | R55: 0 | S55: 0 | T55: 0 | U55: 0 | V55: 0 | W55: 0 | X55: 0 | Y55: 0 | Z55: 0
A56: DISP. LABOS EN % : | B56: =100*B55/V55 ->  | C56: =100*C55/V55 ->  | D56: =100*D55/V55 ->  | E56: =100*E55/V55 ->  | F56: =100*F55/V55 ->  | G56: =100*G55/V55 ->  | H56: =100*H55/V55 ->  | I56: =100*I55/V55 ->  | J56: =100*J55/V55 ->  | K56: =100*K55/V55 ->  | L56: =100*L55/V55 ->  | M56: =100*M55/V55 ->  | N56: =100*N55/V55 ->  | O56: =100*O55/V55 ->  | P56: =100*P55/V55 ->  | Q56: =100*Q55/V55 ->  | R56: =100*R55/V55 ->  | S56: =100*S55/V55 ->  | T56: =100*T55/V55 ->  | U56: =100*U55/V55 ->  | V56: =100*V55/V55 ->  | W56: =100*W55/W55 ->  | X56: =100*X55/V55 ->  | Y56: =100*Y55/V55 ->  | Z56: =100*Z55/V55 -> 
A58: JUIN
B60: AC | C60: MP | D60: PSO | E60: PFC | F60: STA | G60: ECH | H60: ENV | I60: NET | J60: LIMS | K60: PROJET | L60: ESS | M60: AQ | N60: AQ BIL | O60: AQ FORM | P60: AQ INFO | Q60: AQ REDAC | R60: AQ VERIF | S60: AQ REACT | T60: AQ LEAN | U60: AQ MET | V60: CAP REELLE | W60: CONGE | X60: ABSENCES | Y60: CAP. THEO. | Z60: HS
A61: PRELEV. AC | B61: 0 | C61: 0 | D61: 0 | E61: 0 | F61: 0 | G61: 0 | H61: 0 | I61: 0 | J61: 0 | K61: 0 | L61: 0 | M61: 0 | N61: 0 | O61: 0 | P61: 0 | Q61: 0 | R61: 0 | S61: 0 | T61: 0 | U61: 0 | V61: =SUM(B61:M61) -> 0 | W61: 0 | X61: 0 | Y61: =SUM(V61:X61)-Z61 -> 0
A62: PHYSICO-CHIMIE | B62: 0 | C62: 0 | D62: 0 | E62: 0 | F62: 0 | G62: 0 | H62: 0 | I62: 0 | J62: 0 | K62: 0 | L62: 0 | M62: 0 | N62: 0 | O62: 0 | P62: 0 | Q62: 0 | R62: 0 | S62: 0 | T62: 0 | U62: 0 | V62: 0 | W62: 0 | X62: 0 | Y62: 0
A63: AGENT DE LAVERIE | B63: 0 | C63: 0 | D63: 0 | E63: 0 | F63: 0 | G63: 0 | H63: 0 | I63: 0 | J63: 0 | K63: 0 | L63: 0 | M63: 0 | N63: 0 | O63: 0 | P63: 0 | Q63: 0 | R63: 0 | S63: 0 | T63: 0 | U63: 0 | V63: 0 | W63: 0 | X63: 0 | Y63: 0
A64: MICROBIOLOGIE | B64: 0 | C64: 0 | D64: 0 | E64: 0 | F64: 0 | G64: 0 | H64: 0 | I64: 0 | J64: 0 | K64: 0 | L64: 0 | M64: 0 | N64: 0 | O64: 0 | P64: 0 | Q64: 0 | R64: 0 | S64: 0 | T64: 0 | U64: 0 | V64: 0 | W64: 0 | X64: 0 | Y64: 0
A65: CONT FINAL | B65: 0 | C65: 0 | D65: 0 | E65: 0 | F65: 0 | G65: 0 | H65: 0 | I65: 0 | J65: 0 | K65: 0 | L65: 0 | M65: 0 | N65: 0 | O65: 0 | P65: 0 | Q65: 0 | R65: 0 | S65: 0 | T65: 0 | U65: 0 | V65: 0 | W65: 0 | X65: 0 | Y65: 0
A66: TOTAL | B66: =SUM(B61:B65) -> 0 | C66: =SUM(C61:C65) -> 0 | D66: 0 | E66: 0 | F66: 0 | G66: 0 | H66: 0 | I66: 0 | J66: 0 | K66: 0 | L66: 0 | M66: 0 | N66: 0 | O66: 0 | P66: 0 | Q66: 0 | R66: 0 | S66: 0 | T66: 0 | U66: 0 | V66: 0 | W66: 0 | X66: 0 | Y66: 0 | Z66: 0
A67: DISP. LABOS EN % : | B67: =100*B66/V66 ->  | C67: =100*C66/V66 ->  | D67: =100*D66/V66 ->  | E67: =100*E66/V66 ->  | F67: =100*F66/V66 ->  | G67: =100*G66/V66 ->  | H67: =100*H66/V66 ->  | I67: =100*I66/V66 ->  | J67: =100*J66/V66 ->  | K67: =100*K66/V66 ->  | L67: =100*L66/V66 ->  | M67: =100*M66/V66 ->  | N67: =100*N66/V66 ->  | O67: =100*O66/V66 ->  | P67: =100*P66/V66 ->  | Q67: =100*Q66/V66 ->  | R67: =100*R66/V66 ->  | S67: =100*S66/V66 ->  | T67: =100*T66/V66 ->  | U67: =100*U66/V66 ->  | V67: =100*V66/V66 ->  | W67: =100*W66/W66 ->  | X67: =100*X66/V66 ->  | Y67: =100*Y66/V66 ->  | Z67: =100*Z66/V66 -> 
A69: JUILLET
B71: AC | C71: MP | D71: PSO | E71: PFC | F71: STA | G71: ECH | H71: ENV | I71: NET | J71: LIMS | K71: PROJET | L71: ESS | M71: AQ | N71: AQ BIL | O71: AQ FORM | P71: AQ INFO | Q71: AQ REDAC | R71: AQ VERIF | S71: AQ REACT | T71: AQ LEAN | U71: AQ MET | V71: CAP REELLE | W71: CONGE | X71: ABSENCES | Y71: CAP. THEO. | Z71: HS
A72: PRELEV. AC | B72: 0 | C72: 0 | D72: 0 | E72: 0 | F72: 0 | G72: 0 | H72: 0 | I72: 0 | J72: 0 | K72: 0 | L72: 0 | M72: 0 | N72: 0 | O72: 0 | P72: 0 | Q72: 0 | R72: 0 | S72: 0 | T72: 0 | U72: 0 | V72: =SUM(B72:M72) -> 0 | W72: 0 | X72: 0 | Y72: =SUM(V72:X72)-Z72 -> 0
A73: PHYSICO-CHIMIE | B73: 0 | C73: 0 | D73: 0 | E73: 0 | F73: 0 | G73: 0 | H73: 0 | I73: 0 | J73: 0 | K73: 0 | L73: 0 | M73: 0 | N73: 0 | O73: 0 | P73: 0 | Q73: 0 | R73: 0 | S73: 0 | T73: 0 | U73: 0 | V73: 0 | W73: 0 | X73: 0 | Y73: 0
A74: AGENT DE LAVERIE | B74: 0 | C74: 0 | D74: 0 | E74: 0 | F74: 0 | G74: 0 | H74: 0 | I74: 0 | J74: 0 | K74: 0 | L74: 0 | M74: 0 | N74: 0 | O74: 0 | P74: 0 | Q74: 0 | R74: 0 | S74: 0 | T74: 0 | U74: 0 | V74: 0 | W74: 0 | X74: 0 | Y74: 0
A75: MICROBIOLOGIE | B75: 0 | C75: 0 | D75: 0 | E75: 0 | F75: 0 | G75: 0 | H75: 0 | I75: 0 | J75: 0 | K75: 0 | L75: 0 | M75: 0 | N75: 0 | O75: 0 | P75: 0 | Q75: 0 | R75: 0 | S75: 0 | T75: 0 | U75: 0 | V75: 0 | W75: 0 | X75: 0 | Y75: 0
A76: CONT FINAL | B76: 0 | C76: 0 | D76: 0 | E76: 0 | F76: 0 | G76: 0 | H76: 0 | I76: 0 | J76: 0 | K76: 0 | L76: 0 | M76: 0 | N76: 0 | O76: 0 | P76: 0 | Q76: 0 | R76: 0 | S76: 0 | T76: 0 | U76: 0 | V76: 0 | W76: 0 | X76: 0 | Y76: 0
A77: TOTAL | B77: =SUM(B72:B76) -> 0 | C77: =SUM(C72:C76) -> 0 | D77: 0 | E77: 0 | F77: 0 | G77: 0 | H77: 0 | I77: 0 | J77: 0 | K77: 0 | L77: 0 | M77: 0 | N77: 0 | O77: 0 | P77: 0 | Q77: 0 | R77: 0 | S77: 0 | T77: 0 | U77: 0 | V77: 0 | W77: 0 | X77: 0 | Y77: 0 | Z77: 0
A78: DISP. LABOS EN % : | B78: =100*B77/V77 ->  | C78: =100*C77/V77 ->  | D78: =100*D77/V77 ->  | E78: =100*E77/V77 ->  | F78: =100*F77/V77 ->  | G78: =100*G77/V77 ->  | H78: =100*H77/V77 ->  | I78: =100*I77/V77 ->  | J78: =100*J77/V77 ->  | K78: =100*K77/V77 ->  | L78: =100*L77/V77 ->  | M78: =100*M77/V77 ->  | N78: =100*N77/V77 ->  | O78: =100*O77/V77 ->  | P78: =100*P77/V77 ->  | Q78: =100*Q77/V77 ->  | R78: =100*R77/V77 ->  | S78: =100*S77/V77 ->  | T78: =100*T77/V77 ->  | U78: =100*U77/V77 ->  | V78: =100*V77/V77 ->  | W78: =100*W77/W77 ->  | X78: =100*X77/V77 ->  | Y78: =100*Y77/V77 ->  | Z78: =100*Z77/V77 -> 
A80: AOUT
B82: AC | C82: MP | D82: PSO | E82: PFC | F82: STA | G82: ECH | H82: ENV | I82: NET | J82: LIMS | K82: PROJET | L82: ESS | M82: AQ | N82: AQ BIL | O82: AQ FORM | P82: AQ INFO | Q82: AQ REDAC | R82: AQ VERIF | S82: AQ REACT | T82: AQ LEAN | U82: AQ MET | V82: CAP REELLE | W82: CONGE | X82: ABSENCES | Y82: CAP. THEO. | Z82: HS
A83: PRELEV. AC | B83: 0 | C83: 0 | D83: 0 | E83: 0 | F83: 0 | G83: 0 | H83: 0 | I83: 0 | J83: 0 | K83: 0 | L83: 0 | M83: 0 | N83: 0 | O83: 0 | P83: 0 | Q83: 0 | R83: 0 | S83: 0 | T83: 0 | U83: 0 | V83: =SUM(B83:M83) -> 0 | W83: 0 | X83: 0 | Y83: =SUM(V83:X83)-Z83 -> 0
A84: PHYSICO-CHIMIE | B84: 0 | C84: 0 | D84: 0 | E84: 0 | F84: 0 | G84: 0 | H84: 0 | I84: 0 | J84: 0 | K84: 0 | L84: 0 | M84: 0 | N84: 0 | O84: 0 | P84: 0 | Q84: 0 | R84: 0 | S84: 0 | T84: 0 | U84: 0 | V84: 0 | W84: 0 | X84: 0 | Y84: 0
A85: AGENT DE LAVERIE | B85: 0 | C85: 0 | D85: 0 | E85: 0 | F85: 0 | G85: 0 | H85: 0 | I85: 0 | J85: 0 | K85: 0 | L85: 0 | M85: 0 | N85: 0 | O85: 0 | P85: 0 | Q85: 0 | R85: 0 | S85: 0 | T85: 0 | U85: 0 | V85: 0 | W85: 0 | X85: 0 | Y85: 0
A86: MICROBIOLOGIE | B86: 0 | C86: 0 | D86: 0 | E86: 0 | F86: 0 | G86: 0 | H86: 0 | I86: 0 | J86: 0 | K86: 0 | L86: 0 | M86: 0 | N86: 0 | O86: 0 | P86: 0 | Q86: 0 | R86: 0 | S86: 0 | T86: 0 | U86: 0 | V86: 0 | W86: 0 | X86: 0 | Y86: 0
A87: CONT FINAL | B87: 0 | C87: 0 | D87: 0 | E87: 0 | F87: 0 | G87: 0 | H87: 0 | I87: 0 | J87: 0 | K87: 0 | L87: 0 | M87: 0 | N87: 0 | O87: 0 | P87: 0 | Q87: 0 | R87: 0 | S87: 0 | T87: 0 | U87: 0 | V87: 0 | W87: 0 | X87: 0 | Y87: 0
A88: TOTAL | B88: =SUM(B83:B87) -> 0 | C88: =SUM(C83:C87) -> 0 | D88: 0 | E88: 0 | F88: 0 | G88: 0 | H88: 0 | I88: 0 | J88: 0 | K88: 0 | L88: 0 | M88: 0 | N88: 0 | O88: 0 | P88: 0 | Q88: 0 | R88: 0 | S88: 0 | T88: 0 | U88: 0 | V88: 0 | W88: 0 | X88: 0 | Y88: 0 | Z88: 0
A89: DISP. LABOS EN % : | B89: =100*B88/V88 ->  | C89: =100*C88/V88 ->  | D89: =100*D88/V88 ->  | E89: =100*E88/V88 ->  | F89: =100*F88/V88 ->  | G89: =100*G88/V88 ->  | H89: =100*H88/V88 ->  | I89: =100*I88/V88 ->  | J89: =100*J88/V88 ->  | K89: =100*K88/V88 ->  | L89: =100*L88/V88 ->  | M89: =100*M88/V88 ->  | N89: =100*N88/V88 ->  | O89: =100*O88/V88 ->  | P89: =100*P88/V88 ->  | Q89: =100*Q88/V88 ->  | R89: =100*R88/V88 ->  | S89: =100*S88/V88 ->  | T89: =100*T88/V88 ->  | U89: =100*U88/V88 ->  | V89: =100*V88/V88 ->  | W89: =100*W88/W88 ->  | X89: =100*X88/V88 ->  | Y89: =100*Y88/V88 ->  | Z89: =100*Z88/V88 -> 
A91: SEPTEMBRE
B93: AC | C93: MP | D93: PSO | E93: PFC | F93: STA | G93: ECH | H93: ENV | I93: NET | J93: LIMS | K93: PROJET | L93: ESS | M93: AQ | N93: AQ BIL | O93: AQ FORM | P93: AQ INFO | Q93: AQ REDAC | R93: AQ VERIF | S93: AQ REACT | T93: AQ LEAN | U93: AQ MET | V93: CAP REELLE | W93: CONGE | X93: ABSENCES | Y93: CAP. THEO. | Z93: HS
A94: PRELEV. AC | B94: 0 | C94: 0 | D94: 0 | E94: 0 | F94: 0 | G94: 0 | H94: 0 | I94: 0 | J94: 0 | K94: 0 | L94: 0 | M94: 0 | N94: 0 | O94: 0 | P94: 0 | Q94: 0 | R94: 0 | S94: 0 | T94: 0 | U94: 0 | V94: =SUM(B94:M94) -> 0 | W94: 0 | X94: 0 | Y94: =SUM(V94:X94)-Z94 -> 0
A95: PHYSICO-CHIMIE | B95: 0 | C95: 0 | D95: 0 | E95: 0 | F95: 0 | G95: 0 | H95: 0 | I95: 0 | J95: 0 | K95: 0 | L95: 0 | M95: 0 | N95: 0 | O95: 0 | P95: 0 | Q95: 0 | R95: 0 | S95: 0 | T95: 0 | U95: 0 | V95: 0 | W95: 0 | X95: 0 | Y95: 0
A96: AGENT DE LAVERIE | B96: 0 | C96: 0 | D96: 0 | E96: 0 | F96: 0 | G96: 0 | H96: 0 | I96: 0 | J96: 0 | K96: 0 | L96: 0 | M96: 0 | N96: 0 | O96: 0 | P96: 0 | Q96: 0 | R96: 0 | S96: 0 | T96: 0 | U96: 0 | V96: 0 | W96: 0 | X96: 0 | Y96: 0
A97: MICROBIOLOGIE | B97: 0 | C97: 0 | D97: 0 | E97: 0 | F97: 0 | G97: 0 | H97: 0 | I97: 0 | J97: 0 | K97: 0 | L97: 0 | M97: 0 | N97: 0 | O97: 0 | P97: 0 | Q97: 0 | R97: 0 | S97: 0 | T97: 0 | U97: 0 | V97: 0 | W97: 0 | X97: 0 | Y97: 0
A98: CONT FINAL | B98: 0 | C98: 0 | D98: 0 | E98: 0 | F98: 0 | G98: 0 | H98: 0 | I98: 0 | J98: 0 | K98: 0 | L98: 0 | M98: 0 | N98: 0 | O98: 0 | P98: 0 | Q98: 0 | R98: 0 | S98: 0 | T98: 0 | U98: 0 | V98: 0 | W98: 0 | X98: 0 | Y98: 0
A99: TOTAL | B99: =SUM(B94:B98) -> 0 | C99: =SUM(C94:C98) -> 0 | D99: 0 | E99: 0 | F99: 0 | G99: 0 | H99: 0 | I99: 0 | J99: 0 | K99: 0 | L99: 0 | M99: 0 | N99: 0 | O99: 0 | P99: 0 | Q99: 0 | R99: 0 | S99: 0 | T99: 0 | U99: 0 | V99: 0 | W99: 0 | X99: 0 | Y99: 0 | Z99: 0
A100: DISP. LABOS EN % : | B100: =100*B99/V99 ->  | C100: =100*C99/V99 ->  | D100: =100*D99/V99 ->  | E100: =100*E99/V99 ->  | F100: =100*F99/V99 ->  | G100: =100*G99/V99 ->  | H100: =100*H99/V99 ->  | I100: =100*I99/V99 ->  | J100: =100*J99/V99 ->  | K100: =100*K99/V99 ->  | L100: =100*L99/V99 ->  | M100: =100*M99/V99 ->  | N100: =100*N99/V99 ->  | O100: =100*O99/V99 ->  | P100: =100*P99/V99 ->  | Q100: =100*Q99/V99 ->  | R100: =100*R99/V99 ->  | S100: =100*S99/V99 ->  | T100: =100*T99/V99 ->  | U100: =100*U99/V99 ->  | V100: =100*V99/V99 ->  | W100: =100*W99/W99 ->  | X100: =100*X99/V99 ->  | Y100: =100*Y99/V99 ->  | Z100: =100*Z99/V99 -> 
A102: OCTOBRE
B104: AC | C104: MP | D104: PSO | E104: PFC | F104: STA | G104: ECH | H104: ENV | I104: NET | J104: LIMS | K104: PROJET | L104: ESS | M104: AQ | N104: AQ BIL | O104: AQ FORM | P104: AQ INFO | Q104: AQ REDAC | R104: AQ VERIF | S104: AQ REACT | T104: AQ LEAN | U104: AQ MET | V104: CAP REELLE | W104: CONGE | X104: ABSENCES | Y104: CAP. THEO. | Z104: HS
A105: PRELEV. AC | B105: 0 | C105: 0 | D105: 0 | E105: 0 | F105: 0 | G105: 0 | H105: 0 | I105: 0 | J105: 0 | K105: 0 | L105: 0 | M105: 0 | N105: 0 | O105: 0 | P105: 0 | Q105: 0 | R105: 0 | S105: 0 | T105: 0 | U105: 0 | V105: =SUM(B105:M105) -> 0 | W105: 0 | X105: 0 | Y105: =SUM(V105:X105)-Z105 -> 0
A106: PHYSICO-CHIMIE | B106: 0 | C106: 0 | D106: 0 | E106: 0 | F106: 0 | G106: 0 | H106: 0 | I106: 0 | J106: 0 | K106: 0 | L106: 0 | M106: 0 | N106: 0 | O106: 0 | P106: 0 | Q106: 0 | R106: 0 | S106: 0 | T106: 0 | U106: 0 | V106: 0 | W106: 0 | X106: 0 | Y106: 0
A107: AGENT DE LAVERIE | B107: 0 | C107: 0 | D107: 0 | E107: 0 | F107: 0 | G107: 0 | H107: 0 | I107: 0 | J107: 0 | K107: 0 | L107: 0 | M107: 0 | N107: 0 | O107: 0 | P107: 0 | Q107: 0 | R107: 0 | S107: 0 | T107: 0 | U107: 0 | V107: 0 | W107: 0 | X107: 0 | Y107: 0
A108: MICROBIOLOGIE | B108: 0 | C108: 0 | D108: 0 | E108: 0 | F108: 0 | G108: 0 | H108: 0 | I108: 0 | J108: 0 | K108: 0 | L108: 0 | M108: 0 | N108: 0 | O108: 0 | P108: 0 | Q108: 0 | R108: 0 | S108: 0 | T108: 0 | U108: 0 | V108: 0 | W108: 0 | X108: 0 | Y108: 0
A109: CONT FINAL | B109: 0 | C109: 0 | D109: 0 | E109: 0 | F109: 0 | G109: 0 | H109: 0 | I109: 0 | J109: 0 | K109: 0 | L109: 0 | M109: 0 | N109: 0 | O109: 0 | P109: 0 | Q109: 0 | R109: 0 | S109: 0 | T109: 0 | U109: 0 | V109: 0 | W109: 0 | X109: 0 | Y109: 0
A110: TOTAL | B110: =SUM(B105:B109) -> 0 | C110: =SUM(C105:C109) -> 0 | D110: 0 | E110: 0 | F110: 0 | G110: 0 | H110: 0 | I110: 0 | J110: 0 | K110: 0 | L110: 0 | M110: 0 | N110: 0 | O110: 0 | P110: 0 | Q110: 0 | R110: 0 | S110: 0 | T110: 0 | U110: 0 | V110: 0 | W110: 0 | X110: 0 | Y110: 0 | Z110: 0
A111: DISP. LABOS EN % : | B111: =100*B110/V110 ->  | C111: =100*C110/V110 ->  | D111: =100*D110/V110 ->  | E111: =100*E110/V110 ->  | F111: =100*F110/V110 ->  | G111: =100*G110/V110 ->  | H111: =100*H110/V110 ->  | I111: =100*I110/V110 ->  | J111: =100*J110/V110 ->  | K111: =100*K110/V110 ->  | L111: =100*L110/V110 ->  | M111: =100*M110/V110 ->  | N111: =100*N110/V110 ->  | O111: =100*O110/V110 ->  | P111: =100*P110/V110 ->  | Q111: =100*Q110/V110 ->  | R111: =100*R110/V110 ->  | S111: =100*S110/V110 ->  | T111: =100*T110/V110 ->  | U111: =100*U110/V110 ->  | V111: =100*V110/V110 ->  | W111: =100*W110/W110 ->  | X111: =100*X110/V110 ->  | Y111: =100*Y110/V110 ->  | Z111: =100*Z110/V110 -> 
A113: NOVEMBRE
B115: AC | C115: MP | D115: PSO | E115: PFC | F115: STA | G115: ECH | H115: ENV | I115: NET | J115: LIMS | K115: PROJET | L115: ESS | M115: AQ | N115: AQ BIL | O115: AQ FORM | P115: AQ INFO | Q115: AQ REDAC | R115: AQ VERIF | S115: AQ REACT | T115: AQ LEAN | U115: AQ MET | V115: CAP REELLE | W115: CONGE | X115: ABSENCES | Y115: CAP. THEO. | Z115: HS
A116: PRELEV. AC | B116: 0 | C116: 0 | D116: 0 | E116: 0 | F116: 0 | G116: 0 | H116: 0 | I116: 0 | J116: 0 | K116: 0 | L116: 0 | M116: 0 | N116: 0 | O116: 0 | P116: 0 | Q116: 0 | R116: 0 | S116: 0 | T116: 0 | U116: 0 | V116: =SUM(B116:M116) -> 0 | W116: 0 | X116: 0 | Y116: =SUM(V116:X116)-Z116 -> 0
A117: PHYSICO-CHIMIE | B117: 0 | C117: 0 | D117: 0 | E117: 0 | F117: 0 | G117: 0 | H117: 0 | I117: 0 | J117: 0 | K117: 0 | L117: 0 | M117: 0 | N117: 0 | O117: 0 | P117: 0 | Q117: 0 | R117: 0 | S117: 0 | T117: 0 | U117: 0 | V117: 0 | W117: 0 | X117: 0 | Y117: 0
A118: AGENT DE LAVERIE | B118: 0 | C118: 0 | D118: 0 | E118: 0 | F118: 0 | G118: 0 | H118: 0 | I118: 0 | J118: 0 | K118: 0 | L118: 0 | M118: 0 | N118: 0 | O118: 0 | P118: 0 | Q118: 0 | R118: 0 | S118: 0 | T118: 0 | U118: 0 | V118: 0 | W118: 0 | X118: 0 | Y118: 0
A119: MICROBIOLOGIE | B119: 0 | C119: 0 | D119: 0 | E119: 0 | F119: 0 | G119: 0 | H119: 0 | I119: 0 | J119: 0 | K119: 0 | L119: 0 | M119: 0 | N119: 0 | O119: 0 | P119: 0 | Q119: 0 | R119: 0 | S119: 0 | T119: 0 | U119: 0 | V119: 0 | W119: 0 | X119: 0 | Y119: 0
A120: CONT FINAL | B120: 0 | C120: 0 | D120: 0 | E120: 0 | F120: 0 | G120: 0 | H120: 0 | I120: 0 | J120: 0 | K120: 0 | L120: 0 | M120: 0 | N120: 0 | O120: 0 | P120: 0 | Q120: 0 | R120: 0 | S120: 0 | T120: 0 | U120: 0 | V120: 0 | W120: 0 | X120: 0 | Y120: 0
A121: TOTAL | B121: =SUM(B116:B120) -> 0 | C121: =SUM(C116:C120) -> 0 | D121: 0 | E121: 0 | F121: 0 | G121: 0 | H121: 0 | I121: 0 | J121: 0 | K121: 0 | L121: 0 | M121: 0 | N121: 0 | O121: 0 | P121: 0 | Q121: 0 | R121: 0 | S121: 0 | T121: 0 | U121: 0 | V121: 0 | W121: 0 | X121: 0 | Y121: 0 | Z121: 0
A122: DISP. LABOS EN % : | B122: =100*B121/V121 ->  | C122: =100*C121/V121 ->  | D122: =100*D121/V121 ->  | E122: =100*E121/V121 ->  | F122: =100*F121/V121 ->  | G122: =100*G121/V121 ->  | H122: =100*H121/V121 ->  | I122: =100*I121/V121 ->  | J122: =100*J121/V121 ->  | K122: =100*K121/V121 ->  | L122: =100*L121/V121 ->  | M122: =100*M121/V121 ->  | N122: =100*N121/V121 ->  | O122: =100*O121/V121 ->  | P122: =100*P121/V121 ->  | Q122: =100*Q121/V121 ->  | R122: =100*R121/V121 ->  | S122: =100*S121/V121 ->  | T122: =100*T121/V121 ->  | U122: =100*U121/V121 ->  | V122: =100*V121/V121 ->  | W122: =100*W121/W121 ->  | X122: =100*X121/V121 ->  | Y122: =100*Y121/V121 ->  | Z122: =100*Z121/V121 -> 
A124: DECEMBRE
B126: AC | C126: MP | D126: PSO | E126: PFC | F126: STA | G126: ECH | H126: ENV | I126: NET | J126: LIMS | K126: PROJET | L126: ESS | M126: AQ | N126: AQ BIL | O126: AQ FORM | P126: AQ INFO | Q126: AQ REDAC | R126: AQ VERIF | S126: AQ REACT | T126: AQ LEAN | U126: AQ MET | V126: CAP REELLE | W126: CONGE | X126: ABSENCES | Y126: CAP. THEO. | Z126: HS
A127: PRELEV. AC | B127: 0 | C127: 0 | D127: 0 | E127: 0 | F127: 0 | G127: 0 | H127: 0 | I127: 0 | J127: 0 | K127: 0 | L127: 0 | M127: 0 | N127: 0 | O127: 0 | P127: 0 | Q127: 0 | R127: 0 | S127: 0 | T127: 0 | U127: 0 | V127: =SUM(B127:M127) -> 0 | W127: 0 | X127: 0 | Y127: =SUM(V127:X127)-Z127 -> 0
A128: PHYSICO-CHIMIE | B128: 0 | C128: 0 | D128: 0 | E128: 0 | F128: 0 | G128: 0 | H128: 0 | I128: 0 | J128: 0 | K128: 0 | L128: 0 | M128: 0 | N128: 0 | O128: 0 | P128: 0 | Q128: 0 | R128: 0 | S128: 0 | T128: 0 | U128: 0 | V128: 0 | W128: 0 | X128: 0 | Y128: 0
A129: AGENT DE LAVERIE | B129: 0 | C129: 0 | D129: 0 | E129: 0 | F129: 0 | G129: 0 | H129: 0 | I129: 0 | J129: 0 | K129: 0 | L129: 0 | M129: 0 | N129: 0 | O129: 0 | P129: 0 | Q129: 0 | R129: 0 | S129: 0 | T129: 0 | U129: 0 | V129: 0 | W129: 0 | X129: 0 | Y129: 0
A130: MICROBIOLOGIE | B130: 0 | C130: 0 | D130: 0 | E130: 0 | F130: 0 | G130: 0 | H130: 0 | I130: 0 | J130: 0 | K130: 0 | L130: 0 | M130: 0 | N130: 0 | O130: 0 | P130: 0 | Q130: 0 | R130: 0 | S130: 0 | T130: 0 | U130: 0 | V130: 0 | W130: 0 | X130: 0 | Y130: 0
A131: CONT FINAL | B131: 0 | C131: 0 | D131: 0 | E131: 0 | F131: 0 | G131: 0 | H131: 0 | I131: 0 | J131: 0 | K131: 0 | L131: 0 | M131: 0 | N131: 0 | O131: 0 | P131: 0 | Q131: 0 | R131: 0 | S131: 0 | T131: 0 | U131: 0 | V131: 0 | W131: 0 | X131: 0 | Y131: 0
A132: TOTAL | B132: =SUM(B127:B131) -> 0 | C132: =SUM(C127:C131) -> 0 | D132: 0 | E132: 0 | F132: 0 | G132: 0 | H132: 0 | I132: 0 | J132: 0 | K132: 0 | L132: 0 | M132: 0 | N132: 0 | O132: 0 | P132: 0 | Q132: 0 | R132: 0 | S132: 0 | T132: 0 | U132: 0 | V132: 0 | W132: 0 | X132: 0 | Y132: 0 | Z132: 0
A133: DISP. LABOS EN % : | B133: =100*B132/V132 ->  | C133: =100*C132/V132 ->  | D133: =100*D132/V132 ->  | E133: =100*E132/V132 ->  | F133: =100*F132/V132 ->  | G133: =100*G132/V132 ->  | H133: =100*H132/V132 ->  | I133: =100*I132/V132 ->  | J133: =100*J132/V132 ->  | K133: =100*K132/V132 ->  | L133: =100*L132/V132 ->  | M133: =100*M132/V132 ->  | N133: =100*N132/V132 ->  | O133: =100*O132/V132 ->  | P133: =100*P132/V132 ->  | Q133: =100*Q132/V132 ->  | R133: =100*R132/V132 ->  | S133: =100*S132/V132 ->  | T133: =100*T132/V132 ->  | U133: =100*U132/V132 ->  | V133: =100*V132/V132 ->  | W133: =100*W132/W132 ->  | X133: =100*X132/V132 ->  | Y133: =100*Y132/V132 ->  | Z133: =100*Z132/V132 -> 
B137: AC | C137: MP | D137: PSO | E137: PFC | F137: STA | G137: ECH | H137: ENV | I137: NET | J137: LIMS | K137: PROJET | L137: ESS | M137: AQ | N137: AQ BIL | O137: AQ FORM | P137: AQ INFO | Q137: AQ REDAC | R137: AQ VERIF | S137: AQ REACT | T137: AQ LEAN | U137: AQ MET
A138: PRELEV. AC | B138: =SUM(B6+B17+B28+B39+B50+B61+B72+B83+B94+B105+B116+B127) -> 460.5 | C138: =SUM(C6+C17+C28+C39+C50+C61+C72+C83+C94+C105+C116+C127) -> 386.75 | D138: 189.25 | E138: 0 | F138: 0 | G138: 8 | H138: 153 | I138: 0 | J138: 22.5 | K138: 0 | L138: 4 | M138: 123.5 | N138: 0 | O138: 5 | P138: 13.75 | Q138: 46.5 | R138: 0 | S138: 0 | T138: 20.25 | U138: 38
A139: PHYSICO-CHIMIE | B139: =SUM(B7+B18+B29+B40+B51+B62+B73+B84+B95+B106+B117+B128) -> 33.5 | C139: 1221.75 | D139: 1764 | E139: 0 | F139: 569.25 | G139: 0 | H139: 0 | I139: 7.75 | J139: 142.25 | K139: 198.75 | L139: 657.75 | M139: 3056.5 | N139: 104.25 | O139: 89.5 | P139: 883.75 | Q139: 186.25 | R139: 765.5 | S139: 289.75 | T139: 116 | U139: 621.5
A140: AGENT DE LAVERIE | B140: 0 | C140: 0 | D140: 0 | E140: 0 | F140: 0 | G140: 0 | H140: 0 | I140: 116.75 | J140: 0 | K140: 0 | L140: 0 | M140: 346.75 | N140: 26.5 | O140: 28.5 | P140: 30 | Q140: 1.75 | R140: 0 | S140: 183 | T140: 8.25 | U140: 68.75
A141: MICROBIOLOGIE | B141: 0 | C141: 199 | D141: 726.55 | E141: 0 | F141: 24.75 | G141: 44.5 | H141: 590.75 | I141: 121.25 | J141: 96 | K141: 3 | L141: 202.8 | M141: 1501.4 | N141: 141.25 | O141: 322.5 | P141: 178.25 | Q141: 206 | R141: 240 | S141: 236.15 | T141: 34.5 | U141: 142.75
A142: CONT FINAL | B142: 0 | C142: 0 | D142: 0 | E142: 365.5 | F142: 0 | G142: 0 | H142: 0 | I142: 0 | J142: 4 | K142: 0 | L142: 0 | M142: 61.5 | N142: 11 | O142: 0 | P142: 3.75 | Q142: 0.25 | R142: 2.5 | S142: 0 | T142: 40.5 | U142: 3.5
A143: TOTAL | B143: =SUM(B138:B142) -> 494 | C143: =SUM(C138:C142) -> 1807.5 | D143: 2679.8 | E143: 365.5 | F143: 594 | G143: 52.5 | H143: 743.75 | I143: 245.75 | J143: 264.75 | K143: 201.75 | L143: 864.55 | M143: 5089.65 | N143: 283 | O143: 445.5 | P143: 1109.5 | Q143: 440.75 | R143: 1008 | S143: 708.9 | T143: 219.5 | U143: 874.5
B146: Etat global 2016

Sheet fBD
A1: Base de données imputation
A2: NOM | B2: MOIS | C2: Semaine | D2: AC | E2: Commentaire | F2: MP | G2: Commentaire | H2: PSO | I2: Commentaire | J2: PFC | K2: Commentaire | L2: STA | M2: Commentaire | N2: ECH | O2: Commentaire | P2: ENV | Q2: Commentaire | R2: NET | S2: Commentaire | T2: LIMS | U2: Commentaire | V2: PROJET | W2: Commentaire | X2: ESS | Y2: Commentaire | Z2: AQ BIL | AA2: Commentaire | AB2: AQ FORM | AC2: Commentaire | AD2: AQ INFO | AE2: Commentaire | AF2: AQ REDAC | AG2: Commentaire | AH2: AQ VERIF | AI2: Commentaire | AJ2: AQ REACT | AK2: Commentaire | AL2: AQ LEAN | AM2: Commentaire | AN2: AQ MET | AO2: Commentaire | AP2: CONGE | AQ2: ABSENCES | AR2: DONT HS indicatif | AS2: VISA/VALIDATION | AT2: AQ | AU2: CAPACITE REELLE | AV2: CAPACITE THEORIQUE
A3: BONNEMORE | B3: JANVIER | C3: Semaine (04-08/01) | D3: 35 | T3: 1 | AB3: 2 | AL3: 1 | AT3: 3 | AU3: 39 | AV3: 39
A4: BONNEMORE | B4: JANVIER | C4: Semaine (11-15/01) | D4: 38 | T4: 1 | AT4: 0 | AU4: 39 | AV4: 39
A5: BONNEMORE | B5: JANVIER | C5: Semaine (18-22/01) | D5: 31 | T5: 1 | AP5: 7 | AT5: 0 | AU5: 32 | AV5: 39
A6: BONNEMORE | B6: JANVIER | C6: Semaine (25-29/01) | D6: 28 | T6: 1 | X6: 2 | AB6: 1 | AP6: 7 | AT6: 1 | AU6: 32 | AV6: 39
A7: BONNEMORE | B7: FEVRIER | C7: Semaine (01-05/02) | D7: 38 | T7: 1 | AT7: 0 | AU7: 39 | AV7: 39
A8: BONNEMORE | B8: FEVRIER | C8: Semaine (81-12/02) | D8: 35.5 | T8: 1 | X8: 2 | AD8: 0.5 | AT8: 0.5 | AU8: 39 | AV8: 39
A9: BONNEMORE | B9: FEVRIER | C9: Semaine (15-19/02) | D9: 38 | T9: 1 | AT9: 0 | AU9: 39 | AV9: 39
A10: BONNEMORE | B10: FEVRIER | C10: Semaine (22-26/02) | D10: 38 | T10: 1 | AT10: 0 | AU10: 39 | AV10: 39
A11: BONNEMORE | B11: FEVRIER | C11: Semaine (29/02) | D11: 4 | T11: 1 | AF11: 1 | AN11: 2 | AT11: 3 | AU11: 8 | AV11: 8
A12: BONNEMORE | B12: MARS | C12: Semaine (01-04/03) | D12: 30 | T12: 1 | AT12: 0 | AU12: 31 | AV12: 31
A13: BONNEMORE | B13: MARS | C13: Semaine (07-11/03) | D13: 38 | T13: 1 | AT13: 0 | AU13: 39 | AV13: 39
A14: BONNEMORE | B14: MARS | C14: Semaine (14-18/03) | D14: 38 | T14: 1 | AT14: 0 | AU14: 39 | AV14: 39
A15: BONNEMORE | B15: MARS | C15: Semaine (21-25/03) | D15: 38 | T15: 1 | AT15: 0 | AU15: 39 | AV15: 39
A16: BONNEMORE | B16: MARS | C16: Semaine (29-31/03) | AP16: 24 | AT16: 0 | AU16: 0 | AV16: 24
A17: EPRON | B17: JANVIER | C17: Semaine (04-08/01) | F17: 16 | H17: 1 | P17: 5.5 | AB17: 2 | AD17: 1 | AF17: 2 | AL17: 1 | AN17: 2.5 | AP17: 8 | AT17: 8.5 | AU17: 31 | AV17: 39
A18: EPRON | B18: JANVIER | C18: Semaine (11-15/01) | D18: 2 | F18: 20.5 | H18: 5.75 | P18: 5.75 | AF18: 2 | AL18: 0.5 | AN18: 2.5 | AT18: 5 | AU18: 39 | AV18: 39
A19: EPRON | B19: JANVIER | C19: Semaine (18-22/01) | D19: 2 | F19: 18.5 | H19: 3.5 | P19: 8 | AD19: 1 | AF19: 2 | AL19: 1.5 | AN19: 2.5 | AT19: 7 | AU19: 39 | AV19: 39
A20: EPRON | B20: JANVIER | C20: Semaine (25-29/01) | D20: 7 | F20: 8.25 | H20: 2 | P20: 8.25 | AF20: 3 | AL20: 0.5 | AN20: 2 | AP20: 8 | AT20: 5.5 | AU20: 31 | AV20: 39
A21: EPRON | B21: FEVRIER | C21: Semaine (01-05/02) | F21: 16 | H21: 12 | P21: 5 | AF21: 3 | AL21: 0.5 | AN21: 2.5 | AT21: 6 | AU21: 39 | AV21: 39
A22: EPRON | B22: FEVRIER | C22: Semaine (81-12/02) | F22: 16.5 | H22: 6 | P22: 9 | AD22: 2 | AF22: 3 | AL22: 0.5 | AN22: 2 | AT22: 7.5 | AU22: 39 | AV22: 39
A23: EPRON | B23: FEVRIER | C23: Semaine (15-19/02) | F23: 18 | H23: 5 | P23: 9.5 | AF23: 3 | AL23: 1 | AN23: 2.5 | AT23: 6.5 | AU23: 39 | AV23: 39
A24: EPRON | B24: FEVRIER | C24: Semaine (22-26/02) | F24: 11 | H24: 11 | P24: 11.5 | AF24: 2 | AN24: 3.5 | AT24: 5.5 | AU24: 39 | AV24: 39
A25: EPRON | B25: FEVRIER | C25: Semaine (29/02) | F25: 2 | H25: 3 | P25: 0.5 | AF25: 2.5 | AT25: 2.5 | AU25: 8 | AV25: 8
A26: EPRON | B26: MARS | C26: Semaine (01-04/03) | F26: 6 | H26: 5 | P26: 12.5 | T26: 2 | AF26: 3 | AL26: 0.5 | AN26: 2 | AT26: 5.5 | AU26: 31 | AV26: 31
A27: EPRON | B27: MARS | C27: Semaine (07-11/03) | D27: 3 | F27: 16.5 | H27: 8 | P27: 6.5 | AD27: 0.75 | AL27: 0.25 | AP27: 4 | AT27: 1 | AU27: 35 | AV27: 39
A28: EPRON | B28: MARS | C28: Semaine (14-18/03) | F28: 23.25 | H28: 6 | P28: 5.25 | T28: 2.5 | AF28: 2 | AT28: 2 | AU28: 39 | AV28: 39
A29: EPRON | B29: MARS | C29: Semaine (21-25/03) | F29: 20.25 | H29: 3 | P29: 5.25 | T29: 2.5 | AD29: 1 | AF29: 2 | AL29: 1 | AP29: 4 | AT29: 4 | AU29: 35 | AV29: 39
A30: EPRON | B30: MARS | C30: Semaine (29-31/03) | D30: 15 | F30: 4 | P30: 3 | T30: 1.5 | AD30: 0.5 | AT30: 0.5 | AU30: 24 | AV30: 24
A31: VEYSSIERE | B31: JANVIER | C31: Semaine (04-08/01) | F31: 18 | H31: 3.5 | N31: 4 | P31: 5 | AD31: 3 | AF31: 1 | AL31: 1 | AN31: 1 | AQ31: 2.5 | AT31: 6 | AU31: 36.5 | AV31: 39
A32: VEYSSIERE | B32: JANVIER | C32: Semaine (11-15/01) | F32: 13 | H32: 12 | P32: 2 | AD32: 1 | AF32: 1 | AL32: 1 | AN32: 1 | AQ32: 8 | AT32: 4 | AU32: 31 | AV32: 39
A33: VEYSSIERE | B33: JANVIER | C33: Semaine (18-22/01) | F33: 10 | H33: 8 | P33: 1 | AF33: 1 | AL33: 2 | AN33: 1 | AP33: 16 | AT33: 4 | AU33: 23 | AV33: 39
A34: VEYSSIERE | B34: JANVIER | C34: Semaine (25-29/01) | F34: 13 | H34: 9 | P34: 6 | AF34: 1 | AL34: 1 | AN34: 1 | AP34: 8 | AT34: 3 | AU34: 31 | AV34: 39
A35: VEYSSIERE | B35: FEVRIER | C35: Semaine (01-05/02) | F35: 16 | H35: 14 | P35: 4 | AD35: 2 | AF35: 1 | AL35: 1 | AN35: 1 | AT35: 5 | AU35: 39 | AV35: 39
A36: VEYSSIERE | B36: FEVRIER | C36: Semaine (81-12/02) | F36: 16 | H36: 8 | N36: 4 | AF36: 1 | AL36: 1 | AN36: 1 | AQ36: 8 | AT36: 3 | AU36: 31 | AV36: 39
A37: VEYSSIERE | B37: FEVRIER | C37: Semaine (15-19/02) | F37: 20 | H37: 11 | P37: 4 | T37: 1 | AF37: 1 | AL37: 1 | AN37: 1 | AT37: 3 | AU37: 39 | AV37: 39
A38: VEYSSIERE | B38: FEVRIER | C38: Semaine (22-26/02) | F38: 19 | H38: 7.5 | P38: 10.5 | AF38: 1 | AN38: 1 | AT38: 2 | AU38: 39 | AV38: 39
A39: VEYSSIERE | B39: FEVRIER | C39: Semaine (29/02) | H39: 2 | P39: 3 | AF39: 2 | AN39: 1 | AT39: 3 | AU39: 8 | AV39: 8
A40: VEYSSIERE | B40: MARS | C40: Semaine (01-04/03) | F40: 4 | H40: 7 | P40: 7 | AF40: 2 | AL40: 2 | AN40: 1 | AQ40: 8 | AT40: 5 | AU40: 23 | AV40: 31
A41: VEYSSIERE | B41: MARS | C41: Semaine (07-11/03) | D41: 2 | F41: 7 | H41: 18 | P41: 9 | AF41: 1 | AL41: 1 | AN41: 1 | AT41: 3 | AU41: 39 | AV41: 39
A42: VEYSSIERE | B42: MARS | C42: Semaine (14-18/03) | F42: 20 | H42: 9 | AF42: 1 | AN42: 1 | AP42: 8 | AT42: 2 | AU42: 31 | AV42: 39
A43: VEYSSIERE | B43: MARS | C43: Semaine (21-25/03) | F43: 20 | H43: 9 | P43: 6 | AD43: 1 | AF43: 1 | AL43: 1 | AN43: 1 | AT43: 4 | AU43: 39 | AV43: 39
A44: VEYSSIERE | B44: MARS | C44: Semaine (29-31/03) | F44: 14 | AF44: 1 | AN44: 1 | AP44: 8 | AT44: 2 | AU44: 16 | AV44: 24
A45: ABAD | B45: JANVIER | C45: Semaine (04-08/01) | D45: 1.5 | F45: 2 | H45: 27 | X45: 2.5 | AB45: 2 | AD45: 1 | AJ45: 3 | AT45: 6 | AU45: 39 | AV45: 39
A46: ABAD | B46: JANVIER | C46: Semaine (11-15/01) | D46: 0.5 | F46: 2 | H46: 27.5 | X46: 2 | AD46: 1 | AJ46: 3.5 | AN46: 1.5 | AQ46: 1 | AT46: 6 | AU46: 38 | AV46: 39
A47: ABAD | B47: JANVIER | C47: Semaine (18-22/01) | F47: 1.5 | H47: 31 | AB47: 3 | AD47: 2 | AJ47: 0.5 | AN47: 1 | AT47: 6.5 | AU47: 39 | AV47: 39
A48: ABAD | B48: JANVIER | C48: Semaine (25-29/01) | F48: 1.5 | H48: 34.5 | AD48: 1 | AL48: 1 | AN48: 1 | AT48: 3 | AU48: 39 | AV48: 39
A49: ABAD | B49: FEVRIER | C49: Semaine (01-05/02) | F49: 2 | H49: 31.75 | AB49: 1 | AD49: 1.25 | AN49: 3 | AT49: 5.25 | AU49: 39 | AV49: 39
A50: ABAD | B50: FEVRIER | C50: Semaine (81-12/02) | F50: 3 | H50: 28.5 | AD50: 1.5 | AJ50: 4 | AN50: 2 | AT50: 7.5 | AU50: 39 | AV50: 39
A51: ABAD | B51: FEVRIER | C51: Semaine (15-19/02) | F51: 2 | H51: 24.75 | AD51: 1 | AL51: 1 | AN51: 3 | AQ51: 7.25 | AT51: 5 | AU51: 31.75 | AV51: 39
A52: ABAD | B52: FEVRIER | C52: Semaine (22-26/02) | H52: 14.75 | AD52: 0.25 | AT52: 0.25 | AU52: 15 | AV52: 15
A53: ABAD | B53: FEVRIER | C53: Semaine (29/02) | H53: 7.75 | AD53: 0.25 | AT53: 0.25 | AU53: 8 | AV53: 8
A54: ABAD | B54: MARS | C54: Semaine (01-04/03) | H54: 29 | AD54: 1 | AN54: 1 | AT54: 2 | AU54: 31 | AV54: 31
A55: ABAD | B55: MARS | C55: Semaine (07-11/03) | F55: 0.5 | H55: 33.5 | L55: 0.5 | X55: 2 | AB55: 0.5 | AD55: 1 | AN55: 1 | AT55: 2.5 | AU55: 39 | AV55: 39
A56: ABAD | B56: MARS | C56: Semaine (14-18/03) | H56: 33.5 | X56: 1 | AD56: 1 | AJ56: 2.5 | AN56: 1 | AT56: 4.5 | AU56: 39 | AV56: 39
A57: ABAD | B57: MARS | C57: Semaine (21-25/03) | H57: 33.5 | AD57: 1.5 | AJ57: 2 | AL57: 1 | AN57: 1 | AT57: 5.5 | AU57: 39 | AV57: 39
A58: ABAD | B58: MARS | C58: Semaine (29-31/03) | H58: 23 | AD58: 0.5 | AJ58: 0.5 | AT58: 1 | AU58: 24 | AV58: 24
A59: BAH | B59: JANVIER | C59: Semaine (04-08/01) | F59: 25.5 | X59: 1 | AB59: 2.5 | AD59: 2.25 | AJ59: 1 | AN59: 6.75 | AT59: 12.5 | AU59: 39 | AV59: 39
A60: BAH | B60: JANVIER | C60: Semaine (11-15/01) | F60: 24.5 | X60: 1.5 | AD60: 1.25 | AJ60: 0.75 | AN60: 11 | AT60: 13 | AU60: 39 | AV60: 39
A61: BAH | B61: JANVIER | C61: Semaine (18-22/01) | F61: 25 | H61: 0.25 | X61: 4.25 | Z61: 0.5 | AD61: 3.75 | AJ61: 2.25 | AN61: 3 | AT61: 9.5 | AU61: 39 | AV61: 39
A62: BAH | B62: JANVIER | C62: Semaine (25-29/01) | F62: 21.75 | H62: 2 | X62: 9.75 | AD62: 2 | AJ62: 0.75 | AL62: 1 | AN62: 2.5 | AQ62: 1.25 | AR62: 2 | AT62: 6.25 | AU62: 39.75 | AV62: 39
A63: BAH | B63: FEVRIER | C63: Semaine (01-05/02) | F63: 9.75 | X63: 7.75 | AD63: 1 | AF63: 7 | AJ63: 0.75 | AN63: 4.75 | AP63: 8 | AT63: 13.5 | AU63: 31 | AV63: 39
A64: BAH | B64: FEVRIER | C64: Semaine (81-12/02) | F64: 29.25 | X64: 4 | AB64: 0.5 | AD64: 1.75 | AF64: 0.5 | AJ64: 0.75 | AN64: 2.25 | AT64: 5.75 | AU64: 39 | AV64: 39
A65: BAH | B65: FEVRIER | C65: Semaine (15-19/02) | F65: 25.75 | H65: 0.5 | Z65: 3 | AD65: 1.5 | AF65: 0.25 | AH65: 4 | AN65: 4 | AT65: 12.75 | AU65: 39 | AV65: 39
A66: BAH | B66: FEVRIER | C66: Semaine (22-26/02) | F66: 31 | H66: 0.5 | X66: 0.5 | Z66: 1.25 | AD66: 0.75 | AJ66: 2.25 | AN66: 2.75 | AT66: 7 | AU66: 39 | AV66: 39
A67: BAH | B67: FEVRIER | C67: Semaine (29/02) | AP67: 8 | AT67: 0 | AU67: 0 | AV67: 8
A68: BAH | B68: MARS | C68: Semaine (01-04/03) | F68: 18.75 | AD68: 1 | AJ68: 0.5 | AN68: 2.75 | AP68: 8 | AT68: 4.25 | AU68: 23 | AV68: 31
A69: BAH | B69: MARS | C69: Semaine (07-11/03) | F69: 9.25 | H69: 2.5 | V69: 2.25 | X69: 13.25 | Z69: 1 | AB69: 0.75 | AD69: 1 | AJ69: 0.75 | AN69: 8.25 | AT69: 11.75 | AU69: 39 | AV69: 39
A70: BAH | B70: MARS | C70: Semaine (14-18/03) | F70: 27.75 | H70: 3.75 | X70: 0.75 | Z70: 0.25 | AB70: 0.5 | AD70: 0.75 | AJ70: 0.75 | AN70: 4.5 | AT70: 6.75 | AU70: 39 | AV70: 39
A71: BAH | B71: MARS | C71: Semaine (21-25/03) | F71: 29.5 | H71: 1 | X71: 1.5 | AD71: 2 | AJ71: 1.5 | AL71: 1 | AN71: 0.5 | AR71: 1 | AT71: 5 | AU71: 37 | AV71: 36
A72: BAH | B72: MARS | C72: Semaine (29-31/03) | F72: 24 | H72: 0.5 | AJ72: 0.75 | AN72: 1 | AR72: 2.25 | AT72: 1.75 | AU72: 26.25 | AV72: 24
A73: BERNADOU | B73: JANVIER | C73: Semaine (04-08/01) | D73: 0.5 | H73: 0.5 | V73: 10.25 | AD73: 1.75 | AH73: 1 | AJ73: 17.5 | AL73: 0.5 | AN73: 7 | AT73: 27.75 | AU73: 39 | AV73: 39
A74: BERNADOU | B74: JANVIER | C74: Semaine (11-15/01) | H74: 0.25 | V74: 2 | X74: 2 | AD74: 3 | AH74: 12.25 | AJ74: 17.5 | AN74: 2 | AT74: 34.75 | AU74: 39 | AV74: 39
A75: BERNADOU | B75: JANVIER | C75: Semaine (18-22/01) | V75: 8 | AD75: 0.5 | AH75: 1 | AJ75: 20.25 | AN75: 1.25 | AP75: 8 | AT75: 23 | AU75: 31 | AV75: 39
A76: BERNADOU | B76: JANVIER | C76: Semaine (25-29/01) | V76: 1.5 | AB76: 0.25 | AD76: 2.5 | AH76: 13.25 | AJ76: 10.75 | AL76: 1 | AN76: 2.75 | AP76: 7 | AT76: 30.5 | AU76: 32 | AV76: 39
A77: BERNADOU | B77: FEVRIER | C77: Semaine (01-05/02) | H77: 1 | V77: 3 | AB77: 0.5 | AD77: 1.75 | AH77: 13.5 | AJ77: 16.25 | AN77: 4 | AR77: 1 | AT77: 36 | AU77: 40 | AV77: 39
A78: BERNADOU | B78: FEVRIER | C78: Semaine (81-12/02) | AD78: 1.5 | AH78: 26.75 | AJ78: 11.5 | AR78: 0.75 | AT78: 39.75 | AU78: 39.75 | AV78: 39
A79: BERNADOU | B79: FEVRIER | C79: Semaine (15-19/02) | H79: 1 | V79: 7 | AB79: 0.5 | AD79: 0.25 | AH79: 12.75 | AJ79: 9.5 | AL79: 1 | AN79: 1 | AP79: 7 | AR79: 1 | AT79: 25 | AU79: 33 | AV79: 39
A80: BERNADOU | B80: FEVRIER | C80: Semaine (22-26/02) | H80: 0.25 | V80: 5 | AD80: 0.5 | AJ80: 9 | AN80: 1.25 | AP80: 23 | AT80: 10.75 | AU80: 16 | AV80: 39
A81: BERNADOU | B81: FEVRIER | C81: Semaine (29/02) | AJ81: 7.5 | AN81: 0.5 | AT81: 8 | AU81: 8 | AV81: 8
A82: BERNADOU | B82: MARS | C82: Semaine (01-04/03) | H82: 0.25 | V82: 8 | AD82: 1.75 | AH82: 0.5 | AJ82: 8.5 | AN82: 4 | AP82: 8 | AT82: 14.75 | AU82: 23 | AV82: 31
A83: BERNADOU | B83: MARS | C83: Semaine (07-11/03) | H83: 0.25 | V83: 5.5 | AD83: 1.25 | AH83: 9.5 | AJ83: 13 | AN83: 9.5 | AT83: 33.25 | AU83: 39 | AV83: 39
A84: BERNADOU | B84: MARS | C84: Semaine (14-18/03) | H84: 0.75 | V84: 2.75 | AD84: 1 | AH84: 8.75 | AJ84: 23 | AN84: 2.75 | AT84: 35.5 | AU84: 39 | AV84: 39
A85: BERNADOU | B85: MARS | C85: Semaine (21-25/03) | H85: 0.5 | V85: 3.75 | X85: 2.5 | AF85: 0.5 | AH85: 7.75 | AJ85: 18.5 | AL85: 1 | AN85: 4.5 | AT85: 32.25 | AU85: 39 | AV85: 39
A86: BERNADOU | B86: MARS | C86: Semaine (29-31/03) | H86: 3.25 | V86: 0.5 | AF86: 1 | AH86: 7 | AJ86: 13 | AN86: 1 | AR86: 2.75 | AT86: 22 | AU86: 25.75 | AV86: 23
A87: BOULESTIN | B87: JANVIER | C87: Semaine (04-08/01) | F87: 13.5 | H87: 7 | V87: 8.25 | X87: 1 | AD87: 2.75 | AF87: 1.5 | AN87: 5 | AT87: 9.25 | AU87: 39 | AV87: 39
A88: BOULESTIN | B88: JANVIER | C88: Semaine (11-15/01) | F88: 27.75 | H88: 2.25 | X88: 2.25 | AD88: 1.25 | AJ88: 2.5 | AN88: 3 | AT88: 6.75 | AU88: 39 | AV88: 39
A89: BOULESTIN | B89: JANVIER | C89: Semaine (18-22/01) | F89: 23.75 | AD89: 4 | AF89: 2.25 | AN89: 9 | AT89: 15.25 | AU89: 39 | AV89: 39
A90: BOULESTIN | B90: JANVIER | C90: Semaine (25-29/01) | F90: 12.25 | H90: 6.25 | X90: 6 | AD90: 2 | AL90: 1.25 | AN90: 3.25 | AP90: 8 | AT90: 6.5 | AU90: 31 | AV90: 39
A91: BOULESTIN | B91: FEVRIER | C91: Semaine (01-05/02) | F91: 4 | H91: 17.75 | X91: 5.25 | AD91: 3 | AF91: 4 | AN91: 5 | AT91: 12 | AU91: 39 | AV91: 39
A92: BOULESTIN | B92: FEVRIER | C92: Semaine (81-12/02) | F92: 26.5 | H92: 0.5 | X92: 4 | AB92: 1 | AD92: 3.5 | AN92: 3.5 | AT92: 8 | AU92: 39 | AV92: 39
A93: BOULESTIN | B93: FEVRIER | C93: Semaine (15-19/02) | AT93: 0 | AU93: 0 | AV93: 0
A94: BOULESTIN | B94: FEVRIER | C94: Semaine (22-26/02) | F94: 19 | X94: 8.5 | AB94: 0.5 | AD94: 3.5 | AN94: 7.5 | AT94: 11.5 | AU94: 39 | AV94: 39
A95: BOULESTIN | B95: FEVRIER | C95: Semaine (29/02) | F95: 3.75 | X95: 1 | AB95: 0.5 | AD95: 0.75 | AJ95: 0.5 | AN95: 1.5 | AT95: 3.25 | AU95: 8 | AV95: 8
A96: BOULESTIN | B96: MARS | C96: Semaine (01-04/03) | F96: 19 | X96: 0.75 | AD96: 8.5 | AN96: 3.75 | AR96: 1 | AT96: 12.25 | AU96: 32 | AV96: 31
A97: BOULESTIN | B97: MARS | C97: Semaine (07-11/03) | F97: 1 | H97: 0.75 | L97: 10.25 | X97: 3 | AB97: 5 | AD97: 1.5 | AF97: 0.25 | AN97: 1.25 | AP97: 16 | AT97: 8 | AU97: 23 | AV97: 39
A98: BOULESTIN | B98: MARS | C98: Semaine (14-18/03) | F98: 1 | L98: 26 | X98: 6 | AB98: 1 | AD98: 1.75 | AN98: 2.5 | AQ98: 0.75 | AT98: 5.25 | AU98: 38.25 | AV98: 39
A99: BOULESTIN | B99: MARS | C99: Semaine (21-25/03) | H99: 15.75 | L99: 15.5 | AD99: 1.75 | AL99: 1.5 | AN99: 4.5 | AT99: 7.75 | AU99: 39 | AV99: 39
A100: BOULESTIN | B100: MARS | C100: Semaine (29-31/03) | H100: 7.5 | L100: 7 | X100: 6 | AD100: 3.5 | AT100: 3.5 | AU100: 24 | AV100: 24
A101: CAVAILLE | B101: JANVIER | C101: Semaine (04-08/01) | F101: 32 | AB101: 2 | AD101: 1.5 | AJ101: 3 | AN101: 0.5 | AT101: 7 | AU101: 39 | AV101: 39
A102: CAVAILLE | B102: JANVIER | C102: Semaine (11-15/01) | F102: 36 | AD102: 1.25 | AF102: 0.25 | AJ102: 1.5 | AT102: 3 | AU102: 39 | AV102: 39
A103: CAVAILLE | B103: JANVIER | C103: Semaine (18-22/01) | F103: 34 | AD103: 3.5 | AF103: 0.25 | AJ103: 1.25 | AT103: 5 | AU103: 39 | AV103: 39
A104: CAVAILLE | B104: JANVIER | C104: Semaine (25-29/01) | F104: 34 | AD104: 1.25 | AJ104: 1 | AL104: 1 | AN104: 1.75 | AT104: 5 | AU104: 39 | AV104: 39
A105: CAVAILLE | B105: FEVRIER | C105: Semaine (01-05/02) | D105: 0.5 | F105: 25.75 | H105: 4.25 | AD105: 2.25 | AF105: 0.25 | AJ105: 1.5 | AN105: 4.5 | AT105: 8.5 | AU105: 39 | AV105: 39
A106: CAVAILLE | B106: FEVRIER | C106: Semaine (81-12/02) | D106: 2.75 | H106: 32 | AD106: 1.75 | AF106: 0.5 | AN106: 2 | AT106: 4.25 | AU106: 39 | AV106: 39
A107: CAVAILLE | B107: FEVRIER | C107: Semaine (15-19/02) | D107: 2.5 | H107: 32.75 | AD107: 1.5 | AF107: 0.25 | AL107: 1 | AN107: 1 | AT107: 3.75 | AU107: 39 | AV107: 39
A108: CAVAILLE | B108: FEVRIER | C108: Semaine (22-26/02) | F108: 33.75 | AD108: 0.75 | AF108: 0.5 | AJ108: 2.25 | AN108: 1.75 | AT108: 5.25 | AU108: 39 | AV108: 39
A109: CAVAILLE | B109: FEVRIER | C109: Semaine (29/02) | F109: 7.25 | AD109: 0.25 | AJ109: 0.25 | AN109: 0.25 | AT109: 0.75 | AU109: 8 | AV109: 8
A110: CAVAILLE | B110: MARS | C110: Semaine (01-04/03) | F110: 19.75 | X110: 7 | AD110: 1.75 | AJ110: 0.5 | AN110: 2 | AT110: 4.25 | AU110: 31 | AV110: 31
A111: CAVAILLE | B111: MARS | C111: Semaine (07-11/03) | F111: 28.75 | X111: 7.25 | AD111: 1.5 | AF111: 0.75 | AJ111: 0.75 | AT111: 3 | AU111: 39 | AV111: 39
A112: CAVAILLE | B112: MARS | C112: Semaine (14-18/03) | D112: 0.75 | F112: 10 | L112: 8 | X112: 8 | AD112: 1 | AF112: 0.25 | AJ112: 1.5 | AN112: 1.5 | AP112: 8 | AT112: 4.25 | AU112: 31 | AV112: 39
A113: CAVAILLE | B113: MARS | C113: Semaine (21-25/03) | F113: 26.5 | X113: 6.5 | AD113: 1.75 | AJ113: 1.25 | AL113: 1 | AN113: 2 | AT113: 6 | AU113: 39 | AV113: 39
A114: CAVAILLE | B114: MARS | C114: Semaine (29-31/03) | F114: 13.5 | X114: 6 | AD114: 0.5 | AF114: 0.25 | AJ114: 2 | AN114: 1.75 | AT114: 4.5 | AU114: 24 | AV114: 24
A115: CERVEAUX | B115: JANVIER | C115: Semaine (04-08/01) | Z115: 0.5 | AD115: 2.25 | AH115: 36.25 | AT115: 39 | AU115: 39 | AV115: 39
A116: CERVEAUX | B116: JANVIER | C116: Semaine (11-15/01) | H116: 0.5 | V116: 20 | Z116: 1.75 | AH116: 15.5 | AN116: 1.25 | AT116: 18.5 | AU116: 39 | AV116: 39
A117: CERVEAUX | B117: JANVIER | C117: Semaine (18-22/01) | V117: 11.5 | Z117: 1.5 | AD117: 3.25 | AH117: 22 | AL117: 0.75 | AT117: 27.5 | AU117: 39 | AV117: 39
A118: CERVEAUX | B118: JANVIER | C118: Semaine (25-29/01) | V118: 17.5 | Z118: 0.5 | AD118: 1.25 | AH118: 11.75 | AP118: 8 | AT118: 13.5 | AU118: 31 | AV118: 39
A119: CERVEAUX | B119: FEVRIER | C119: Semaine (01-05/02) | V119: 10.5 | AD119: 2.5 | AF119: 22 | AP119: 4 | AT119: 24.5 | AU119: 35 | AV119: 39
A120: CERVEAUX | B120: FEVRIER | C120: Semaine (81-12/02) | Z120: 1 | AF120: 18.75 | AH120: 18 | AN120: 1.25 | AT120: 39 | AU120: 39 | AV120: 39
A121: CERVEAUX | B121: FEVRIER | C121: Semaine (15-19/02) | H121: 0.5 | X121: 4.25 | Z121: 0.75 | AD121: 1.75 | AF121: 1.25 | AH121: 25.75 | AL121: 2 | AN121: 2.75 | AT121: 34.25 | AU121: 39 | AV121: 39
A122: CERVEAUX | B122: FEVRIER | C122: Semaine (22-26/02) | H122: 0.25 | V122: 1 | X122: 0.25 | Z122: 0.75 | AD122: 1 | AH122: 34.5 | AN122: 1.25 | AT122: 37.5 | AU122: 39 | AV122: 39
A123: CERVEAUX | B123: FEVRIER | C123: Semaine (29/02) | Z123: 0.75 | AD123: 0.25 | AH123: 7 | AT123: 8 | AU123: 8 | AV123: 8
A124: CERVEAUX | B124: MARS | C124: Semaine (01-04/03) | T124: 0.5 | V124: 2.75 | Z124: 0.75 | AD124: 1.75 | AF124: 2 | AH124: 21.75 | AN124: 1.5 | AT124: 27.75 | AU124: 31 | AV124: 31
A125: CERVEAUX | B125: MARS | C125: Semaine (07-11/03) | T125: 11 | AD125: 1 | AH125: 19 | AP125: 8 | AT125: 20 | AU125: 31 | AV125: 39
A126: CERVEAUX | B126: MARS | C126: Semaine (14-18/03) | H126: 1 | V126: 2.5 | AB126: 1.5 | AD126: 2.75 | AH126: 31.25 | AJ126: 0.75 | AN126: 0.25 | AR126: 1 | AT126: 36.5 | AU126: 40 | AV126: 39
A127: CERVEAUX | B127: MARS | C127: Semaine (21-25/03) | T127: 8.25 | V127: 13 | Z127: 1 | AB127: 0.5 | AD127: 2 | AF127: 0.5 | AH127: 12.25 | AL127: 1 | AN127: 0.5 | AT127: 17.75 | AU127: 39 | AV127: 39
A128: CERVEAUX | B128: MARS | C128: Semaine (29-31/03) | V128: 0.5 | Z128: 0.75 | AD128: 0.25 | AH128: 21.5 | AL128: 0.5 | AN128: 0.5 | AT128: 23.5 | AU128: 24 | AV128: 24
A129: CRON | B129: JANVIER | C129: Semaine (04-08/01) | H129: 7 | L129: 27.5 | V129: 1 | AB129: 1 | AD129: 1.5 | AN129: 1 | AT129: 3.5 | AU129: 39 | AV129: 39
A130: CRON | B130: JANVIER | C130: Semaine (11-15/01) | H130: 9 | L130: 21 | AD130: 1 | AP130: 8 | AT130: 1 | AU130: 31 | AV130: 39
A131: CRON | B131: JANVIER | C131: Semaine (18-22/01) | H131: 28 | R131: 2 | X131: 2.25 | AB131: 1 | AD131: 2.25 | AL131: 0.5 | AN131: 3 | AT131: 6.75 | AU131: 39 | AV131: 39
A132: CRON | B132: JANVIER | C132: Semaine (25-29/01) | F132: 1.25 | H132: 12.5 | L132: 1.5 | X132: 18 | Z132: 0.25 | AD132: 1.25 | AL132: 1 | AN132: 3.25 | AT132: 5.75 | AU132: 39 | AV132: 39
A133: CRON | B133: FEVRIER | C133: Semaine (01-05/02) | H133: 13 | L133: 16 | X133: 1 | AB133: 3.5 | AD133: 1.5 | AN133: 4 | AT133: 9 | AU133: 39 | AV133: 39
A134: CRON | B134: FEVRIER | C134: Semaine (81-12/02) | H134: 15.25 | L134: 6.25 | X134: 7 | AB134: 1.5 | AD134: 1 | AN134: 1.5 | AQ134: 7 | AR134: 0.5 | AT134: 4 | AU134: 32.5 | AV134: 39
A135: CRON | B135: FEVRIER | C135: Semaine (15-19/02) | H135: 23.75 | X135: 10.5 | AD135: 1.5 | AL135: 1 | AN135: 2.25 | AT135: 4.75 | AU135: 39 | AV135: 39
A136: CRON | B136: FEVRIER | C136: Semaine (22-26/02) | H136: 28.25 | X136: 3.5 | Z136: 1 | AD136: 0.75 | AN136: 6.25 | AR136: 0.75 | AT136: 8 | AU136: 39.75 | AV136: 39
A137: CRON | B137: FEVRIER | C137: Semaine (29/02) | H137: 4.5 | X137: 2.5 | AB137: 0.25 | AN137: 1.25 | AR137: 0.5 | AT137: 1.5 | AU137: 8.5 | AV137: 8
A138: CRON | B138: MARS | C138: Semaine (01-04/03) | H138: 5.5 | X138: 16 | AD138: 1.5 | AN138: 8 | AT138: 9.5 | AU138: 31 | AV138: 31
A139: CRON | B139: MARS | C139: Semaine (07-11/03) | H139: 17.75 | L139: 6.5 | X139: 7 | AB139: 1.5 | AD139: 1.5 | AN139: 4.75 | AT139: 7.75 | AU139: 39 | AV139: 39
A140: CRON | B140: MARS | C140: Semaine (14-18/03) | H140: 6 | X140: 27.25 | AB140: 1.75 | AD140: 1.25 | AN140: 2.75 | AT140: 5.75 | AU140: 39 | AV140: 39
A141: CRON | B141: MARS | C141: Semaine (21-25/03) | F141: 3 | H141: 1.25 | L141: 13.5 | X141: 18 | AD141: 1.75 | AL141: 1 | AN141: 0.5 | AT141: 3.25 | AU141: 39 | AV141: 39
A142: CRON | B142: MARS | C142: Semaine (29-31/03) | AP142: 24 | AT142: 0 | AU142: 0 | AV142: 24
A143: GUEGUEN | B143: JANVIER | C143: Semaine (04-08/01) | X143: 0.5 | Z143: 2 | AD143: 2.25 | AF143: 9 | AH143: 10.75 | AL143: 6.5 | AP143: 8 | AT143: 30.5 | AU143: 31 | AV143: 39
A144: GUEGUEN | B144: JANVIER | C144: Semaine (11-15/01) | Z144: 1 | AD144: 4 | AF144: 6.5 | AH144: 13.25 | AL144: 6.25 | AP144: 8 | AT144: 31 | AU144: 31 | AV144: 39
A145: GUEGUEN | B145: JANVIER | C145: Semaine (18-22/01) | X145: 0.75 | AB145: 0.25 | AD145: 5.25 | AF145: 7.75 | AH145: 13.75 | AJ145: 0.5 | AL145: 4.25 | AP145: 8 | AR145: 1.5 | AT145: 31.75 | AU145: 32.5 | AV145: 39
A146: GUEGUEN | B146: JANVIER | C146: Semaine (25-29/01) | X146: 1.5 | AB146: 0.5 | AD146: 2.5 | AF146: 3.5 | AH146: 15.75 | AL146: 6.75 | AN146: 0.5 | AP146: 8 | AT146: 29.5 | AU146: 31 | AV146: 39
A147: GUEGUEN | B147: FEVRIER | C147: Semaine (01-05/02) | Z147: 0.75 | AB147: 1 | AD147: 6.25 | AF147: 7.25 | AH147: 23 | AQ147: 2.25 | AR147: 1.5 | AT147: 38.25 | AU147: 38.25 | AV147: 39
A148: GUEGUEN | B148: FEVRIER | C148: Semaine (81-12/02) | AD148: 1.75 | AF148: 10.5 | AH148: 21.25 | AL148: 4 | AN148: 1.5 | AT148: 39 | AU148: 39 | AV148: 39
A149: GUEGUEN | B149: FEVRIER | C149: Semaine (15-19/02) | Z149: 2.5 | AD149: 2 | AF149: 10.5 | AH149: 11.75 | AL149: 12.25 | AT149: 39 | AU149: 39 | AV149: 39
A150: GUEGUEN | B150: FEVRIER | C150: Semaine (22-26/02) | X150: 0.5 | AB150: 0.25 | AF150: 8.5 | AH150: 14.75 | AL150: 2.25 | AN150: 8.75 | AP150: 4 | AT150: 34.5 | AU150: 35 | AV150: 39
A151: GUEGUEN | B151: FEVRIER | C151: Semaine (29/02) | AB151: 1.25 | AF151: 1 | AH151: 4.75 | AL151: 1 | AT151: 8 | AU151: 8 | AV151: 8
A152: GUEGUEN | B152: MARS | C152: Semaine (01-04/03) | X152: 1.75 | Z152: 1.5 | AD152: 0.75 | AF152: 6.5 | AH152: 17.75 | AL152: 2 | AN152: 0.75 | AT152: 29.25 | AU152: 31 | AV152: 31
A153: GUEGUEN | B153: MARS | C153: Semaine (07-11/03) | AP153: 39 | AT153: 0 | AU153: 0 | AV153: 39
A154: GUEGUEN | B154: MARS | C154: Semaine (14-18/03) | AB154: 3.75 | AD154: 3 | AF154: 10.5 | AH154: 18.75 | AL154: 1.5 | AT154: 37.5 | AU154: 39 | AV154: 39
A155: GUEGUEN | B155: MARS | C155: Semaine (21-25/03) | X155: 0.5 | AD155: 4 | AF155: 5 | AH155: 22 | AL155: 8 | AN155: 0.5 | AQ155: 0.5 | AR155: 1.5 | AT155: 39.5 | AU155: 40 | AV155: 39
A156: GUEGUEN | B156: MARS | C156: Semaine (28-31/03) | Z156: 1 | AD156: 1 | AF156: 8 | AH156: 13.5 | AN156: 0.5 | AT156: 24 | AU156: 24 | AV156: 24
A157: GASNIER | B157: JANVIER | C157: Semaine (04-08/01) | X157: 0.5 | Z157: 4.5 | AB157: 4 | AD157: 4.75 | AH157: 17.25 | AP157: 8 | AT157: 30.5 | AU157: 31 | AV157: 39
A158: GASNIER | B158: JANVIER | C158: Semaine (11-15/01) | L158: 0.5 | X158: 3 | AB158: 3 | AD158: 11.5 | AH158: 13 | AL158: 0.5 | AP158: 8 | AR158: 0.5 | AT158: 28 | AU158: 31.5 | AV158: 39
A159: GASNIER | B159: JANVIER | C159: Semaine (18-22/01) | AB159: 3 | AD159: 23 | AH159: 12 | AN159: 1 | AT159: 39 | AU159: 39 | AV159: 39
A160: GASNIER | B160: JANVIER | C160: Semaine (25-29/01) | X160: 1.5 | AB160: 4.5 | AD160: 13.75 | AH160: 17.75 | AN160: 2 | AR160: 0.5 | AT160: 38 | AU160: 39.5 | AV160: 39
A161: GASNIER | B161: FEVRIER | C161: Semaine (01-05/02) | X161: 0.5 | Z161: 7 | AD161: 23.25 | AH161: 7 | AL161: 0.25 | AN161: 1 | AT161: 38.5 | AU161: 39 | AV161: 39
A162: GASNIER | B162: FEVRIER | C162: Semaine (81-12/02) | X162: 2.75 | AB162: 1.25 | AD162: 20.5 | AH162: 15.5 | AR162: 1 | AT162: 37.25 | AU162: 40 | AV162: 39
A163: GASNIER | B163: FEVRIER | C163: Semaine (15-19/02) | X163: 0.75 | AD163: 25 | AH163: 9.25 | AN163: 4 | AT163: 38.25 | AU163: 39 | AV163: 39
A164: GASNIER | B164: FEVRIER | C164: Semaine (22-26/02) | AB164: 1.75 | AD164: 30.5 | AH164: 5 | AN164: 3.5 | AR164: 1.75 | AT164: 40.75 | AU164: 40.75 | AV164: 39
A165: GASNIER | B165: FEVRIER | C165: Semaine (29/02) | X165: 4.5 | AD165: 0.75 | AH165: 2 | AN165: 0.75 | AT165: 3.5 | AU165: 8 | AV165: 8
A166: GASNIER | B166: MARS | C166: Semaine (01-04/03) | X166: 2.5 | Z166: 5.25 | AB166: 2 | AD166: 20.25 | AH166: 2 | AR166: 1 | AT166: 29.5 | AU166: 32 | AV166: 31
A167: GASNIER | B167: MARS | C167: Semaine (07-11/03) | X167: 5 | AD167: 19.75 | AH167: 10 | AN167: 5 | AR167: 0.75 | AT167: 34.75 | AU167: 39.75 | AV167: 39
A168: GASNIER | B168: MARS | C168: Semaine (14-18/03) | X168: 0.75 | AD168: 27.25 | AH168: 12 | AR168: 1 | AT168: 39.25 | AU168: 40 | AV168: 39
A169: GASNIER | B169: MARS | C169: Semaine (21-25/03) | X169: 16.5 | AD169: 18 | AH169: 5 | AR169: 0.5 | AT169: 23 | AU169: 39.5 | AV169: 39
A170: GASNIER | B170: MARS | C170: Semaine (29-31/03) | X170: 4 | AD170: 6.5 | AH170: 7 | AP170: 8 | AR170: 1.5 | AT170: 13.5 | AU170: 17.5 | AV170: 24
A171: HERVE | B171: JANVIER | C171: Semaine (04-08/01) | H171: 1 | Z171: 7 | AB171: 1 | AD171: 28.75 | AH171: 2 | AJ171: 0.5 | AL171: 1 | AR171: 2.25 | AT171: 40.25 | AU171: 41.25 | AV171: 39
A172: HERVE | B172: JANVIER | C172: Semaine (11-15/01) | F172: 2 | V172: 2 | X172: 1 | Z172: 2 | AD172: 25.75 | AN172: 2.5 | AP172: 7 | AR172: 3.25 | AT172: 30.25 | AU172: 35.25 | AV172: 39
A173: HERVE | B173: JANVIER | C173: Semaine (18-22/01) | F173: 2 | V173: 1 | X173: 6 | Z173: 9 | AD173: 19.25 | AH173: 3 | AN173: 1 | AR173: 2.25 | AT173: 32.25 | AU173: 41.25 | AV173: 39
A174: HERVE | B174: JANVIER | C174: Semaine (25-29/01) | H174: 0.5 | X174: 13 | AB174: 0.5 | AD174: 28.5 | AJ174: 1 | AN174: 1.5 | AR174: 6 | AT174: 31.5 | AU174: 45 | AV174: 39
A175: HERVE | B175: FEVRIER | C175: Semaine (01-05/02) | X175: 4.5 | Z175: 12 | AD175: 23.75 | AH175: 1 | AN175: 3.25 | AR175: 5.5 | AT175: 40 | AU175: 44.5 | AV175: 39
A176: HERVE | B176: FEVRIER | C176: Semaine (81-12/02) | X176: 2 | Z176: 2 | AD176: 31.5 | AH176: 1 | AN176: 1 | AP176: 4 | AR176: 2.5 | AT176: 35.5 | AU176: 37.5 | AV176: 39
A177: HERVE | B177: FEVRIER | C177: Semaine (15-19/02) | AD177: 37.5 | AH177: 2 | AN177: 0.5 | AR177: 1 | AT177: 40 | AU177: 40 | AV177: 39
A178: HERVE | B178: FEVRIER | C178: Semaine (22-26/02) | X178: 3 | AD178: 26 | AH178: 5 | AL178: 2 | AP178: 8 | AR178: 5 | AT178: 33 | AU178: 36 | AV178: 39
A179: HERVE | B179: FEVRIER | C179: Semaine (29/02) | X179: 3.5 | AD179: 4.5 | AT179: 4.5 | AU179: 8 | AV179: 8
A180: HERVE | B180: MARS | C180: Semaine (01-04/03) | X180: 7.5 | Z180: 8 | AD180: 12 | AH180: 2 | AN180: 3 | AR180: 1.5 | AT180: 25 | AU180: 32.5 | AV180: 31
A181: HERVE | B181: MARS | C181: Semaine (07-11/03) | AP181: 39 | AT181: 0 | AU181: 0 | AV181: 39
A182: HERVE | B182: MARS | C182: Semaine (14-18/03) | F182: 0.5 | X182: 11 | AD182: 26 | AL182: 1 | AN182: 2.5 | AR182: 2 | AT182: 29.5 | AU182: 41 | AV182: 39
A183: HERVE | B183: MARS | C183: Semaine (21-25/03) | X183: 3 | AD183: 37 | AH183: 3 | AR183: 4 | AT183: 40 | AU183: 43 | AV183: 39
A184: HERVE | B184: MARS | C184: Semaine (29-31/03) | AP184: 24 | AT184: 0 | AU184: 0 | AV184: 24
A185: LABEQUE | B185: JANVIER | C185: Semaine (04-08/01) | F185: 27 | AD185: 2 | AJ185: 3.5 | AN185: 2 | AQ185: 4.5 | AT185: 7.5 | AU185: 34.5 | AV185: 39
A186: LABEQUE | B186: JANVIER | C186: Semaine (11-15/01) | F186: 32.5 | AD186: 1 | AJ186: 2 | AN186: 2.5 | AQ186: 1 | AT186: 5.5 | AU186: 38 | AV186: 39
A187: LABEQUE | B187: JANVIER | C187: Semaine (18-22/01) | F187: 18.25 | H187: 14.75 | AD187: 2.25 | AJ187: 0.75 | AN187: 2.25 | AQ187: 0.75 | AT187: 5.25 | AU187: 38.25 | AV187: 39
A188: LABEQUE | B188: JANVIER | C188: Semaine (25-29/01) | F188: 14.25 | H188: 18.5 | AB188: 0.5 | AD188: 2.75 | AN188: 2.25 | AQ188: 0.75 | AT188: 5.5 | AU188: 38.25 | AV188: 39
A189: LABEQUE | B189: FEVRIER | C189: Semaine (01-05/02) | H189: 19 | X189: 12.25 | AD189: 1.5 | AN189: 3.25 | AQ189: 3 | AT189: 4.75 | AU189: 36 | AV189: 39
A190: LABEQUE | B190: FEVRIER | C190: Semaine (81-12/02) | F190: 9.25 | AD190: 0.75 | AJ190: 0.5 | AN190: 3.75 | AP190: 24 | AQ190: 0.75 | AT190: 5 | AU190: 14.25 | AV190: 39
A191: LABEQUE | B191: FEVRIER | C191: Semaine (15-19/02) | F191: 20.25 | H191: 1.25 | X191: 8 | AB191: 1 | AD191: 2 | AF191: 1.5 | AJ191: 0.5 | AL191: 1 | AN191: 2.75 | AQ191: 0.75 | AT191: 8.75 | AU191: 38.25 | AV191: 39
A192: LABEQUE | B192: FEVRIER | C192: Semaine (22-26/02) | F192: 24.75 | X192: 8.25 | AD192: 1 | AJ192: 0.75 | AN192: 2.5 | AQ192: 1.75 | AT192: 4.25 | AU192: 37.25 | AV192: 39
A193: LABEQUE | B193: FEVRIER | C193: Semaine (29/02) | AT193: 0 | AU193: 0 | AV193: 0
A194: LABEQUE | B194: MARS | C194: Semaine (01-04/03) | F194: 24 | AD194: 1.75 | AJ194: 1.25 | AN194: 4 | AT194: 7 | AU194: 31 | AV194: 31
A195: LABEQUE | B195: MARS | C195: Semaine (07-11/03) | F195: 11.75 | H195: 17.75 | AD195: 1.5 | AN195: 1.25 | AQ195: 6.75 | AT195: 2.75 | AU195: 32.25 | AV195: 39
A196: LABEQUE | B196: MARS | C196: Semaine (14-18/03) | AT196: 0 | AU196: 0 | AV196: 0
A197: LABEQUE | B197: MARS | C197: Semaine (21-25/03) | AT197: 0 | AU197: 0 | AV197: 0
A198: LABEQUE | B198: MARS | C198: Semaine (29-31/03) | AP198: 24 | AT198: 0 | AU198: 0 | AV198: 24
A199: LAFAYE | B199: JANVIER | C199: Semaine (04-08/01) | H199: 25.25 | L199: 3.5 | T199: 7 | AD199: 1.25 | AN199: 2 | AT199: 3.25 | AU199: 39 | AV199: 39
A200: LAFAYE | B200: JANVIER | C200: Semaine (11-15/01) | H200: 3 | L200: 1 | T200: 20.5 | AD200: 1 | AN200: 10 | AP200: 3.5 | AT200: 11 | AU200: 35.5 | AV200: 39
... 451 more rows

Sheet Generique
A1: GUEGUEN
A3: JANVIER
B4: NOM | C4: AC | D4: MP | E4: PSO | F4: PFC | G4: STA | H4: ECH | I4: ENV | J4: NET | K4: LIMS | L4: PROJET | M4: ESS | N4: AQ | O4: AQ BIL | P4: AQ FORM | Q4: AQ INFO | R4: AQ REDAC | S4: AQ VERIF | T4: AQ REACT | U4: AQ LEAN | V4: AQ MET | W4: CAPACITE REELLE | X4: CONGE | Y4: ABSENCES | Z4: CAPACITE THEORIQUE | AA4: DONT HS indicatif
B5: Semaine (04-08/01) | M5: 0.5 | N5: =SUM(O5:V5) -> 30.5 | O5: 2 | Q5: 2.25 | R5: 9 | S5: 10.75 | U5: 6.5 | W5: =SUM(C5:N5) -> 31 | X5: 8 | Z5: =SUM(W5:Y5)-AA5 -> 39
B6: Semaine (11-15/01) | N6: =SUM(O6:V6) -> 31 | O6: 1 | Q6: 4 | R6: 6.5 | S6: 13.25 | U6: 6.25 | W6: =SUM(C6:N6) -> 31 | X6: 8 | Z6: =SUM(W6:Y6)-AA6 -> 39
B7: Semaine (18-22/01) | M7: 0.75 | N7: 31.75 | P7: 0.25 | Q7: 5.25 | R7: 7.75 | S7: 13.75 | T7: 0.5 | U7: 4.25 | W7: =SUM(C7:N7) -> 32.5 | X7: 8 | Z7: =SUM(W7:Y7)-AA7 -> 39 | AA7: 1.5
B8: Semaine (25-29/01) | M8: 1.5 | N8: =SUM(O8:V8) -> 29.5 | P8: 0.5 | Q8: 2.5 | R8: 3.5 | S8: 15.75 | U8: 6.75 | V8: 0.5 | W8: 31 | X8: 8 | Z8: 39
N9: 0 | W9: 0 | Z9: =SUM(W9:Y9)-AA9 -> 0
B10: TOTAL | C10: =SUM(C5:C9) -> 0 | D10: =SUM(D5:D9) -> 0 | E10: 0 | F10: 0 | G10: 0 | H10: 0 | I10: 0 | J10: 0 | K10: 0 | L10: 0 | M10: 2.75 | N10: 122.75 | O10: 3 | P10: 0.75 | Q10: 14 | R10: 26.75 | S10: 53.5 | T10: 0.5 | U10: 23.75 | V10: 0.5 | W10: 125.5 | X10: =SUM(X5:X9) -> 32 | Y10: 0 | Z10: 156 | AA10: 1.5
A12: FEVRIER
B13: NOM | C13: AC | D13: MP | E13: PSO | F13: PFC | G13: STA | H13: ECH | I13: ENV | J13: NET | K13: LIMS | L13: PROJET | M13: ESS | N13: AQ | O13: AQ BIL | P13: AQ FORM | Q13: AQ INFO | R13: AQ REDAC | S13: AQ VERIF | T13: AQ REACT | U13: AQ LEAN | V13: AQ MET | W13: CAPACITE REELLE | X13: CONGE | Y13: ABSENCES | Z13: CAPACITE THEORIQUE | AA13: DONT HS indicatif
B14: Semaine (01-05/02) | N14: =SUM(O14:V14) -> 38.25 | O14: 0.75 | P14: 1 | Q14: 6.25 | R14: 7.25 | S14: 23 | W14: =SUM(C14:N14) -> 38.25 | Y14: 2.25 | Z14: =SUM(W14:Y14)-AA14 -> 39 | AA14: 1.5
B15: Semaine (81-12/02) | N15: =SUM(O15:V15) -> 39 | Q15: 1.75 | R15: 10.5 | S15: 21.25 | U15: 4 | V15: 1.5 | W15: =SUM(C15:N15) -> 39 | Z15: =SUM(W15:Y15)-AA15 -> 39
B16: Semaine (15-19/02) | N16: =SUM(O16:V16) -> 39 | O16: 2.5 | Q16: 2 | R16: 10.5 | S16: 11.75 | U16: 12.25 | W16: 39 | Z16: 39
B17: Semaine (22-26/02) | M17: 0.5 | N17: =SUM(O17:V17) -> 34.5 | P17: 0.25 | R17: 8.5 | S17: 14.75 | U17: 2.25 | V17: 8.75 | W17: 35 | X17: 4 | Z17: 39
B18: Semaine (29/02) | N18: 8 | P18: 1.25 | R18: 1 | S18: 4.75 | U18: 1 | W18: 8 | Z18: =SUM(W18:Y18)-AA18 -> 8
B19: TOTAL | C19: =SUM(C14:C18) -> 0 | D19: =SUM(D14:D18) -> 0 | E19: 0 | F19: 0 | G19: 0 | H19: 0 | I19: 0 | J19: 0 | K19: 0 | L19: 0 | M19: 0.5 | N19: 158.75 | O19: 3.25 | P19: 2.5 | Q19: 10 | R19: 37.75 | S19: 75.5 | T19: 0 | U19: 19.5 | V19: 10.25 | W19: 159.25 | X19: =SUM(X14:X18) -> 4 | Y19: =SUM(Y14:Y18) -> 2.25 | Z19: 164 | AA19: 1.5
A21: MARS
B22: NOM | C22: AC | D22: MP | E22: PSO | F22: PFC | G22: STA | H22: ECH | I22: ENV | J22: NET | K22: LIMS | L22: PROJET | M22: ESS | N22: AQ | O22: AQ BIL | P22: AQ FORM | Q22: AQ INFO | R22: AQ REDAC | S22: AQ VERIF | T22: AQ REACT | U22: AQ LEAN | V22: AQ MET | W22: CAPACITE REELLE | X22: CONGE | Y22: ABSENCES | Z22: CAPACITE THEORIQUE | AA22: DONT HS indicatif
B23: Semaine (01-04/03) | M23: 1.75 | N23: =SUM(O23:V23) -> 29.25 | O23: 1.5 | Q23: 0.75 | R23: 6.5 | S23: 17.75 | U23: 2 | V23: 0.75 | W23: =SUM(C23:N23) -> 31 | Z23: =SUM(W23:Y23)-AA23 -> 31
B24: Semaine (07-11/03) | N24: =SUM(O24:V24) -> 0 | W24: =SUM(C24:N24) -> 0 | X24: 39 | Z24: =SUM(W24:Y24)-AA24 -> 39
B25: Semaine (14-18/03) | N25: =SUM(O25:V25) -> 37.5 | P25: 3.75 | Q25: 3 | R25: 10.5 | S25: 18.75 | U25: 1.5 | W25: 37.5 | Z25: 37.5
B26: Semaine (21-25/03) | M26: 0.5 | N26: 39.5 | Q26: 4 | R26: 5 | S26: 22 | U26: 8 | V26: 0.5 | W26: 40 | Y26: 0.5 | Z26: 39 | AA26: 1.5
B27: Semaine (28-31/03) | N27: =SUM(O27:V27) -> 24 | O27: 1 | Q27: 1 | R27: 8 | S27: 13.5 | V27: 0.5 | W27: 24 | Z27: =SUM(W27:Y27)-AA27 -> 24
B28: TOTAL | C28: =SUM(C23:C27) -> 0 | D28: =SUM(D23:D27) -> 0 | E28: =SUM(E23:E27) -> 0 | F28: =SUM(F23:F27) -> 0 | G28: 0 | H28: 0 | I28: 0 | J28: 0 | K28: 0 | L28: 0 | M28: 2.25 | N28: 130.25 | O28: 2.5 | P28: 3.75 | Q28: 8.75 | R28: 30 | S28: 72 | T28: =SUM(T23:T27) -> 0 | U28: =SUM(U23:U27) -> 11.5 | V28: 1.75 | W28: 132.5 | X28: =SUM(X23:X27) -> 39 | Y28: =SUM(Y23:Y27) -> 0.5 | Z28: 170.5 | AA28: 1.5
A30: AVRIL
B31: NOM | C31: AC | D31: MP | E31: PSO | F31: PFC | G31: STA | H31: ECH | I31: ENV | J31: NET | K31: LIMS | L31: PROJET | M31: ESS | N31: AQ | O31: AQ BIL | P31: AQ FORM | Q31: AQ INFO | R31: AQ REDAC | S31: AQ VERIF | T31: AQ REACT | U31: AQ LEAN | V31: AQ MET | W31: CAPACITE REELLE | X31: CONGE | Y31: ABSENCES | Z31: CAPACITE THEORIQUE | AA31: DONT HS indicatif
B32: S30 (25/07-29/07) | C32: 1 | D32: 2 | E32: 3 | G32: 4 | J32: 5 | K32: 6 | L32: 7 | M32: 8 | N32: =SUM(O32:V32) -> 100 | O32: 9 | P32: 10 | Q32: 11 | R32: 12 | S32: 13 | T32: 14 | U32: 15 | V32: 16 | W32: =SUM(C32:N32) -> 136 | X32: 17 | Y32: 18 | Z32: =SUM(W32:Y32)-AA32 -> 152 | AA32: 19
N33: =SUM(O33:V33) -> 0 | W33: =SUM(C33:N33) -> 0 | Z33: =SUM(W33:Y33)-AA33 -> 0
N34: =SUM(O34:V34) -> 0 | W34: 0 | Z34: 0
N35: 0 | W35: 0 | Z35: 0
N36: =SUM(O36:V36) -> 0 | W36: 0 | Z36: =SUM(W36:Y36)-AA36 -> 0
B37: TOTAL | C37: =SUM(C32:C36) -> 1 | D37: =SUM(D32:D36) -> 2 | E37: 3 | F37: 0 | G37: 4 | H37: 0 | I37: 0 | J37: 5 | K37: 6 | L37: 7 | M37: 8 | N37: 100 | O37: 9 | P37: 10 | Q37: 11 | R37: 12 | S37: 13 | T37: 14 | U37: 15 | V37: 16 | W37: 136 | X37: =SUM(X32:X36) -> 17 | Y37: =SUM(Y32:Y36) -> 18 | Z37: 152 | AA37: 19
A39: MAI
B40: NOM | C40: AC | D40: MP | E40: PSO | F40: PFC | G40: STA | H40: ECH | I40: ENV | J40: NET | K40: LIMS | L40: PROJET | M40: ESS | N40: AQ | O40: AQ BIL | P40: AQ FORM | Q40: AQ INFO | R40: AQ REDAC | S40: AQ VERIF | T40: AQ REACT | U40: AQ LEAN | V40: AQ MET | W40: CAPACITE REELLE | X40: CONGE | Y40: ABSENCES | Z40: CAPACITE THEORIQUE | AA40: DONT HS indicatif
N41: =SUM(O41:V41) -> 0 | W41: =SUM(C41:N41) -> 0 | Z41: =SUM(W41:Y41)-AA41 -> 0
N42: =SUM(O42:V42) -> 0 | W42: =SUM(C42:N42) -> 0 | Z42: =SUM(W42:Y42)-AA42 -> 0
N43: =SUM(O43:V43) -> 0 | W43: 0 | Z43: 0
N44: =SUM(O44:V44) -> 0 | W44: 0 | Z44: 0
N45: =SUM(O45:V45) -> 0 | W45: 0 | Z45: =SUM(W45:Y45)-AA45 -> 0
B46: TOTAL | C46: =SUM(C41:C45) -> 0 | D46: =SUM(D41:D45) -> 0 | E46: 0 | F46: =SUM(F41:F45) -> 0 | G46: =SUM(G41:G45) -> 0 | H46: 0 | I46: 0 | J46: 0 | K46: 0 | L46: 0 | M46: 0 | N46: 0 | O46: 0 | P46: 0 | Q46: 0 | R46: 0 | S46: 0 | T46: 0 | U46: 0 | V46: 0 | W46: 0 | X46: =SUM(X41:X45) -> 0 | Y46: =SUM(Y41:Y45) -> 0 | Z46: 0 | AA46: 0
A48: JUIN
B49: NOM | C49: AC | D49: MP | E49: PSO | F49: PFC | G49: STA | H49: ECH | I49: ENV | J49: NET | K49: LIMS | L49: PROJET | M49: ESS | N49: AQ | O49: AQ BIL | P49: AQ FORM | Q49: AQ INFO | R49: AQ REDAC | S49: AQ VERIF | T49: AQ REACT | U49: AQ LEAN | V49: AQ MET | W49: CAPACITE REELLE | X49: CONGE | Y49: ABSENCES | Z49: CAPACITE THEORIQUE | AA49: DONT HS indicatif
N50: =SUM(O50:V50) -> 0 | W50: =SUM(C50:N50) -> 0 | Z50: =SUM(W50:Y50)-AA50 -> 0
N51: =SUM(O51:V51) -> 0 | W51: =SUM(C51:N51) -> 0 | Z51: =SUM(W51:Y51)-AA51 -> 0
N52: =SUM(O52:V52) -> 0 | W52: 0 | Z52: 0
N53: =SUM(O53:V53) -> 0 | W53: 0 | Z53: 0
N54: =SUM(O54:V54) -> 0 | W54: 0 | Z54: =SUM(W54:Y54)-AA54 -> 0
B55: TOTAL | C55: =SUM(C50:C54) -> 0 | D55: =SUM(D50:D54) -> 0 | E55: 0 | F55: 0 | G55: 0 | H55: 0 | I55: 0 | J55: 0 | K55: 0 | L55: 0 | M55: 0 | N55: 0 | O55: 0 | P55: 0 | Q55: 0 | R55: 0 | S55: 0 | T55: 0 | U55: 0 | V55: 0 | W55: 0 | X55: =SUM(X50:X54) -> 0 | Y55: =SUM(Y50:Y54) -> 0 | Z55: 0 | AA55: 0
A57: JUILLET
B58: NOM | C58: AC | D58: MP | E58: PSO | F58: PFC | G58: STA | H58: ECH | I58: ENV | J58: NET | K58: LIMS | L58: PROJET | M58: ESS | N58: AQ | O58: AQ BIL | P58: AQ FORM | Q58: AQ INFO | R58: AQ REDAC | S58: AQ VERIF | T58: AQ REACT | U58: AQ LEAN | V58: AQ MET | W58: CAPACITE REELLE | X58: CONGE | Y58: ABSENCES | Z58: CAPACITE THEORIQUE | AA58: DONT HS indicatif
N59: =SUM(O59:V59) -> 0 | W59: =SUM(C59:N59) -> 0 | Z59: =SUM(W59:Y59)-AA59 -> 0
N60: =SUM(O60:V60) -> 0 | W60: =SUM(C60:N60) -> 0 | Z60: =SUM(W60:Y60)-AA60 -> 0
N61: =SUM(O61:V61) -> 0 | W61: 0 | Z61: 0
N62: =SUM(O62:V62) -> 0 | W62: 0 | Z62: 0
N63: =SUM(O63:V63) -> 0 | W63: 0 | Z63: =SUM(W63:Y63)-AA63 -> 0
B64: TOTAL | C64: =SUM(C59:C63) -> 0 | D64: =SUM(D59:D63) -> 0 | E64: 0 | F64: 0 | G64: 0 | H64: =SUM(H59:H63) -> 0 | I64: =SUM(I59:I63) -> 0 | J64: 0 | K64: 0 | L64: 0 | M64: 0 | N64: 0 | O64: 0 | P64: 0 | Q64: 0 | R64: 0 | S64: 0 | T64: 0 | U64: 0 | V64: 0 | W64: 0 | X64: =SUM(X59:X63) -> 0 | Y64: =SUM(Y59:Y63) -> 0 | Z64: 0 | AA64: 0
A66: AOUT
B67: NOM | C67: AC | D67: MP | E67: PSO | F67: PFC | G67: STA | H67: ECH | I67: ENV | J67: NET | K67: LIMS | L67: PROJET | M67: ESS | N67: AQ | O67: AQ BIL | P67: AQ FORM | Q67: AQ INFO | R67: AQ REDAC | S67: AQ VERIF | T67: AQ REACT | U67: AQ LEAN | V67: AQ MET | W67: CAPACITE REELLE | X67: CONGE | Y67: ABSENCES | Z67: CAPACITE THEORIQUE | AA67: DONT HS indicatif
N68: =SUM(O68:V68) -> 0 | W68: =SUM(C68:N68) -> 0 | Z68: =SUM(W68:Y68)-AA68 -> 0
N69: =SUM(O69:V69) -> 0 | W69: =SUM(C69:N69) -> 0 | Z69: =SUM(W69:Y69)-AA69 -> 0
N70: =SUM(O70:V70) -> 0 | W70: 0 | Z70: 0
N71: =SUM(O71:V71) -> 0 | W71: 0 | Z71: 0
N72: =SUM(O72:V72) -> 0 | W72: 0 | Z72: =SUM(W72:Y72)-AA72 -> 0
B73: TOTAL | C73: =SUM(C68:C72) -> 0 | D73: =SUM(D68:D72) -> 0 | E73: 0 | F73: 0 | G73: 0 | H73: 0 | I73: 0 | J73: 0 | K73: =SUM(K68:K72) -> 0 | L73: =SUM(L68:L72) -> 0 | M73: 0 | N73: 0 | O73: 0 | P73: 0 | Q73: 0 | R73: 0 | S73: 0 | T73: 0 | U73: 0 | V73: 0 | W73: 0 | X73: =SUM(X68:X72) -> 0 | Y73: =SUM(Y68:Y72) -> 0 | Z73: 0 | AA73: 0
A75: SEPTEMBRE
B76: NOM | C76: AC | D76: MP | E76: PSO | F76: PFC | G76: STA | H76: ECH | I76: ENV | J76: NET | K76: LIMS | L76: PROJET | M76: ESS | N76: AQ | O76: AQ BIL | P76: AQ FORM | Q76: AQ INFO | R76: AQ REDAC | S76: AQ VERIF | T76: AQ REACT | U76: AQ LEAN | V76: AQ MET | W76: CAPACITE REELLE | X76: CONGE | Y76: ABSENCES | Z76: CAPACITE THEORIQUE | AA76: DONT HS indicatif
N77: =SUM(O77:V77) -> 0 | W77: =SUM(C77:N77) -> 0 | Z77: =SUM(W77:Y77)-AA77 -> 0
N78: =SUM(O78:V78) -> 0 | W78: =SUM(C78:N78) -> 0 | Z78: =SUM(W78:Y78)-AA78 -> 0
N79: =SUM(O79:V79) -> 0 | W79: 0 | Z79: 0
N80: =SUM(O80:V80) -> 0 | W80: 0 | Z80: 0
N81: =SUM(O81:V81) -> 0 | W81: 0 | Z81: =SUM(W81:Y81)-AA81 -> 0
B82: TOTAL | C82: =SUM(C77:C81) -> 0 | D82: =SUM(D77:D81) -> 0 | E82: 0 | F82: 0 | G82: 0 | H82: 0 | I82: 0 | J82: 0 | K82: 0 | L82: 0 | M82: 0 | N82: 0 | O82: 0 | P82: 0 | Q82: 0 | R82: 0 | S82: 0 | T82: 0 | U82: 0 | V82: 0 | W82: 0 | X82: =SUM(X77:X81) -> 0 | Y82: =SUM(Y77:Y81) -> 0 | Z82: 0 | AA82: 0
A84: OCTOBRE
B85: NOM | C85: AC | D85: MP | E85: PSO | F85: PFC | G85: STA | H85: ECH | I85: ENV | J85: NET | K85: LIMS | L85: PROJET | M85: ESS | N85: AQ | O85: AQ BIL | P85: AQ FORM | Q85: AQ INFO | R85: AQ REDAC | S85: AQ VERIF | T85: AQ REACT | U85: AQ LEAN | V85: AQ MET | W85: CAPACITE REELLE | X85: CONGE | Y85: ABSENCES | Z85: CAPACITE THEORIQUE | AA85: DONT HS indicatif
N86: =SUM(O86:V86) -> 0 | W86: =SUM(C86:N86) -> 0 | Z86: =SUM(W86:Y86)-AA86 -> 0
N87: =SUM(O87:V87) -> 0 | W87: =SUM(C87:N87) -> 0 | Z87: =SUM(W87:Y87)-AA87 -> 0
N88: =SUM(O88:V88) -> 0 | W88: 0 | Z88: 0
N89: =SUM(O89:V89) -> 0 | W89: 0 | Z89: 0
N90: =SUM(O90:V90) -> 0 | W90: 0 | Z90: =SUM(W90:Y90)-AA90 -> 0
B91: TOTAL | C91: =SUM(C86:C90) -> 0 | D91: =SUM(D86:D90) -> 0 | E91: 0 | F91: 0 | G91: 0 | H91: 0 | I91: 0 | J91: 0 | K91: 0 | L91: =SUM(L86:L90) -> 0 | M91: =SUM(M86:M90) -> 0 | N91: 0 | O91: 0 | P91: 0 | Q91: 0 | R91: 0 | S91: 0 | T91: 0 | U91: 0 | V91: 0 | W91: 0 | X91: =SUM(X86:X90) -> 0 | Y91: =SUM(Y86:Y90) -> 0 | Z91: 0 | AA91: 0
A93: NOVEMBRE
B94: NOM | C94: AC | D94: MP | E94: PSO | F94: PFC | G94: STA | H94: ECH | I94: ENV | J94: NET | K94: LIMS | L94: PROJET | M94: ESS | N94: AQ | O94: AQ BIL | P94: AQ FORM | Q94: AQ INFO | R94: AQ REDAC | S94: AQ VERIF | T94: AQ REACT | U94: AQ LEAN | V94: AQ MET | W94: CAPACITE REELLE | X94: CONGE | Y94: ABSENCES | Z94: CAPACITE THEORIQUE | AA94: DONT HS indicatif
N95: =SUM(O95:V95) -> 0 | W95: =SUM(C95:N95) -> 0 | Z95: =SUM(W95:Y95)-AA95 -> 0
N96: =SUM(O96:V96) -> 0 | W96: =SUM(C96:N96) -> 0 | Z96: =SUM(W96:Y96)-AA96 -> 0
N97: =SUM(O97:V97) -> 0 | W97: 0 | Z97: 0
N98: =SUM(O98:V98) -> 0 | W98: 0 | Z98: 0
N99: =SUM(O99:V99) -> 0 | W99: 0 | Z99: =SUM(W99:Y99)-AA99 -> 0
B100: TOTAL | C100: =SUM(C95:C99) -> 0 | D100: =SUM(D95:D99) -> 0 | E100: 0 | F100: 0 | G100: 0 | H100: 0 | I100: 0 | J100: 0 | K100: 0 | L100: 0 | M100: 0 | N100: 0 | O100: 0 | P100: 0 | Q100: 0 | R100: 0 | S100: 0 | T100: 0 | U100: 0 | V100: 0 | W100: 0 | X100: =SUM(X95:X99) -> 0 | Y100: =SUM(Y95:Y99) -> 0 | Z100: 0 | AA100: 0
A102: DECEMBRE
B103: NOM | C103: AC | D103: MP | E103: PSO | F103: PFC | G103: STA | H103: ECH | I103: ENV | J103: NET | K103: LIMS | L103: PROJET | M103: ESS | N103: AQ | O103: AQ BIL | P103: AQ FORM | Q103: AQ INFO | R103: AQ REDAC | S103: AQ VERIF | T103: AQ REACT | U103: AQ LEAN | V103: AQ MET | W103: CAPACITE REELLE | X103: CONGE | Y103: ABSENCES | Z103: CAPACITE THEORIQUE | AA103: DONT HS indicatif
N104: =SUM(O104:V104) -> 0 | W104: =SUM(C104:N104) -> 0 | Z104: =SUM(W104:Y104)-AA104 -> 0
N105: =SUM(O105:V105) -> 0 | W105: =SUM(C105:N105) -> 0 | Z105: =SUM(W105:Y105)-AA105 -> 0
N106: =SUM(O106:V106) -> 0 | W106: 0 | Z106: =SUM(W106:Y106)-AA106 -> 0
N107: =SUM(O107:V107) -> 0 | W107: 0 | Z107: 0
N108: =SUM(O108:V108) -> 0 | W108: =SUM(C108:N108) -> 0 | Z108: =SUM(W108:Y108)-AA108 -> 0
B109: TOTAL | C109: =SUM(C104:C108) -> 0 | D109: =SUM(D104:D108) -> 0 | E109: 0 | F109: 0 | G109: 0 | H109: 0 | I109: 0 | J109: 0 | K109: =SUM(K104:K108) -> 0 | L109: =SUM(L104:L108) -> 0 | M109: 0 | N109: 0 | O109: 0 | P109: 0 | Q109: 0 | R109: 0 | S109: 0 | T109: 0 | U109: 0 | V109: 0 | W109: 0 | X109: =SUM(X104:X108) -> 0 | Y109: =SUM(Y104:Y108) -> 0 | Z109: 0 | AA109: 0
B114: Etat global 2016
B116: AC | C116: MP | D116: PSO | E116: PFC | F116: STA | G116: ECH | H116: ENV | I116: NET | J116: LIMS | K116: PROJET | L116: ESS | M116: AQ | N116: AQ BIL | O116: AQ FORM | P116: AQ INFO | Q116: AQ REDAC | R116: AQ VERIF | S116: AQ REACT | T116: AQ LEAN | U116: AQ MET
B117: =SUM(C10+C19+C28+C37+C46+C55+C64+C73+C82+C91+C100+C109) -> 1 | C117: =SUM(D10+D19+D28+D37+D46+D55+D64+D73+D82+D91+D100+D109) -> 2 | D117: =SUM(E10+E19+E28+E37+E46+E55+E64+E73+E82+E91+E100+E109) -> 3 | E117: =SUM(F10+F19+F28+F37+F46+F55+F64+F73+F82+F91+F100+F109) -> 0 | F117: 4 | G117: 0 | H117: 0 | I117: 5 | J117: 6 | K117: 7 | L117: 13.5 | M117: 511.75 | N117: 17.75 | O117: 17 | P117: 43.75 | Q117: 106.5 | R117: 214 | S117: 14.5 | T117: 69.75 | U117: 28.5

Sheet VIERGE
A1: …
A3: JANVIER
B4: NOM | C4: AC | D4: MP | E4: PSO | F4: PFC | G4: STA | H4: ECH | I4: ENV/MAN DIV | J4: NET | K4: LIMS | L4: PROJET | M4: ESS | N4: AQ | O4: AQ BIL | P4: AQ FORM | Q4: AQ INFO | R4: AQ REDAC | S4: AQ VERIF | T4: AQ REACT | U4: AQ LEAN | V4: AQ MET | W4: CAPACITE REELLE | X4: CONGE | Y4: ABSENCES | Z4: CAPACITE THEORIQUE | AA4: DONT HS indicatif
B5: Semaine (../..) | N5: =SUM(O5:V5) -> 0 | W5: =SUM(C5:N5) -> 0 | Z5: =SUM(W5:Y5)-AA5 -> 0
B6: Semaine (../..) | N6: =SUM(O6:V6) -> 0 | W6: =SUM(C6:N6) -> 0 | Z6: =SUM(W6:Y6)-AA6 -> 0
B7: Semaine (../..) | N7: 0 | W7: =SUM(C7:N7) -> 0 | Z7: =SUM(W7:Y7)-AA7 -> 0
B8: Semaine (../..) | N8: =SUM(O8:V8) -> 0 | W8: 0 | Z8: 0
B9: Semaine (../..) | N9: 0 | W9: 0 | Z9: =SUM(W9:Y9)-AA9 -> 0
B10: TOTAL | C10: =SUM(C5:C9) -> 0 | D10: =SUM(D5:D9) -> 0 | E10: 0 | F10: 0 | G10: 0 | H10: 0 | I10: 0 | J10: 0 | K10: 0 | L10: 0 | M10: 0 | N10: 0 | O10: 0 | P10: 0 | Q10: 0 | R10: 0 | S10: 0 | T10: 0 | U10: 0 | V10: 0 | W10: 0 | X10: =SUM(X5:X9) -> 0 | Y10: 0 | Z10: 0 | AA10: 0
A12: FEVRIER
B13: NOM | C13: AC | D13: MP | E13: PSO | F13: PFC | G13: STA | H13: ECH | I13: ENV/MAN DIV | J13: NET | K13: LIMS | L13: PROJET | M13: ESS | N13: AQ | O13: AQ BIL | P13: AQ FORM | Q13: AQ INFO | R13: AQ REDAC | S13: AQ VERIF | T13: AQ REACT | U13: AQ LEAN | V13: AQ MET | W13: CAPACITE REELLE | X13: CONGE | Y13: ABSENCES | Z13: CAPACITE THEORIQUE | AA13: DONT HS indicatif
B14: Semaine (../..) | N14: =SUM(O14:V14) -> 0 | W14: =SUM(C14:N14) -> 0 | Z14: =SUM(W14:Y14)-AA14 -> 0
B15: Semaine (../..) | N15: =SUM(O15:V15) -> 0 | W15: =SUM(C15:N15) -> 0 | Z15: =SUM(W15:Y15)-AA15 -> 0
B16: Semaine (../..) | N16: =SUM(O16:V16) -> 0 | W16: 0 | Z16: 0
B17: Semaine (../..) | N17: =SUM(O17:V17) -> 0 | W17: 0 | Z17: 0
B18: Semaine (../..) | N18: 0 | W18: 0 | Z18: =SUM(W18:Y18)-AA18 -> 0
B19: TOTAL | C19: =SUM(C14:C18) -> 0 | D19: =SUM(D14:D18) -> 0 | E19: 0 | F19: 0 | G19: 0 | H19: 0 | I19: 0 | J19: 0 | K19: 0 | L19: 0 | M19: 0 | N19: 0 | O19: 0 | P19: 0 | Q19: 0 | R19: 0 | S19: 0 | T19: 0 | U19: 0 | V19: 0 | W19: 0 | X19: =SUM(X14:X18) -> 0 | Y19: 0 | Z19: 0 | AA19: 0
A21: MARS
B22: NOM | C22: AC | D22: MP | E22: PSO | F22: PFC | G22: STA | H22: ECH | I22: ENV/MAN DIV | J22: NET | K22: LIMS | L22: PROJET | M22: ESS | N22: AQ | O22: AQ BIL | P22: AQ FORM | Q22: AQ INFO | R22: AQ REDAC | S22: AQ VERIF | T22: AQ REACT | U22: AQ LEAN | V22: AQ MET | W22: CAPACITE REELLE | X22: CONGE | Y22: ABSENCES | Z22: CAPACITE THEORIQUE | AA22: DONT HS indicatif
B23: Semaine (../..) | N23: =SUM(O23:V23) -> 0 | W23: =SUM(C23:N23) -> 0 | Z23: =SUM(W23:Y23)-AA23 -> 0
B24: Semaine (../..) | N24: =SUM(O24:V24) -> 0 | W24: =SUM(C24:N24) -> 0 | Z24: =SUM(W24:Y24)-AA24 -> 0
B25: Semaine (../..) | N25: =SUM(O25:V25) -> 0 | W25: 0 | Z25: 0
B26: Semaine (../..) | N26: 0 | W26: 0 | Z26: 0
B27: Semaine (../..) | N27: =SUM(O27:V27) -> 0 | W27: 0 | Z27: =SUM(W27:Y27)-AA27 -> 0
B28: TOTAL | C28: =SUM(C23:C27) -> 0 | D28: =SUM(D23:D27) -> 0 | E28: =SUM(E23:E27) -> 0 | F28: =SUM(F23:F27) -> 0 | G28: 0 | H28: 0 | I28: 0 | J28: 0 | K28: 0 | L28: 0 | M28: 0 | N28: 0 | O28: 0 | P28: 0 | Q28: 0 | R28: 0 | S28: 0 | T28: 0 | U28: 0 | V28: 0 | W28: 0 | X28: =SUM(X23:X27) -> 0 | Y28: 0 | Z28: 0 | AA28: 0
A30: AVRIL
B31: NOM | C31: AC | D31: MP | E31: PSO | F31: PFC | G31: STA | H31: ECH | I31: ENV/MAN DIV | J31: NET | K31: LIMS | L31: PROJET | M31: ESS | N31: AQ | O31: AQ BIL | P31: AQ FORM | Q31: AQ INFO | R31: AQ REDAC | S31: AQ VERIF | T31: AQ REACT | U31: AQ LEAN | V31: AQ MET | W31: CAPACITE REELLE | X31: CONGE | Y31: ABSENCES | Z31: CAPACITE THEORIQUE | AA31: DONT HS indicatif
B32: Semaine (../..) | N32: =SUM(O32:V32) -> 0 | W32: =SUM(C32:N32) -> 0 | Z32: =SUM(W32:Y32)-AA32 -> 0
B33: Semaine (../..) | N33: =SUM(O33:V33) -> 0 | W33: =SUM(C33:N33) -> 0 | Z33: =SUM(W33:Y33)-AA33 -> 0
B34: Semaine (../..) | N34: =SUM(O34:V34) -> 0 | W34: 0 | Z34: 0
B35: Semaine (../..) | N35: 0 | W35: 0 | Z35: 0
B36: Semaine (../..) | N36: =SUM(O36:V36) -> 0 | W36: 0 | Z36: =SUM(W36:Y36)-AA36 -> 0
B37: TOTAL | C37: =SUM(C32:C36) -> 0 | D37: =SUM(D32:D36) -> 0 | E37: 0 | F37: 0 | G37: 0 | H37: 0 | I37: 0 | J37: 0 | K37: 0 | L37: 0 | M37: 0 | N37: 0 | O37: 0 | P37: 0 | Q37: 0 | R37: 0 | S37: 0 | T37: 0 | U37: 0 | V37: 0 | W37: 0 | X37: =SUM(X32:X36) -> 0 | Y37: 0 | Z37: 0 | AA37: 0
A39: MAI
B40: NOM | C40: AC | D40: MP | E40: PSO | F40: PFC | G40: STA | H40: ECH | I40: ENV/MAN DIV | J40: NET | K40: LIMS | L40: PROJET | M40: ESS | N40: AQ | O40: AQ BIL | P40: AQ FORM | Q40: AQ INFO | R40: AQ REDAC | S40: AQ VERIF | T40: AQ REACT | U40: AQ LEAN | V40: AQ MET | W40: CAPACITE REELLE | X40: CONGE | Y40: ABSENCES | Z40: CAPACITE THEORIQUE | AA40: DONT HS indicatif
B41: Semaine (../..) | N41: =SUM(O41:V41) -> 0 | W41: =SUM(C41:N41) -> 0 | Z41: =SUM(W41:Y41)-AA41 -> 0
B42: Semaine (../..) | N42: =SUM(O42:V42) -> 0 | W42: =SUM(C42:N42) -> 0 | Z42: =SUM(W42:Y42)-AA42 -> 0
B43: Semaine (../..) | N43: =SUM(O43:V43) -> 0 | W43: 0 | Z43: 0
B44: Semaine (../..) | N44: =SUM(O44:V44) -> 0 | W44: 0 | Z44: 0
B45: Semaine (../..) | N45: =SUM(O45:V45) -> 0 | W45: 0 | Z45: =SUM(W45:Y45)-AA45 -> 0
B46: TOTAL | C46: =SUM(C41:C45) -> 0 | D46: =SUM(D41:D45) -> 0 | E46: 0 | F46: =SUM(F41:F45) -> 0 | G46: =SUM(G41:G45) -> 0 | H46: 0 | I46: 0 | J46: 0 | K46: 0 | L46: 0 | M46: 0 | N46: 0 | O46: 0 | P46: 0 | Q46: 0 | R46: 0 | S46: 0 | T46: 0 | U46: 0 | V46: 0 | W46: 0 | X46: =SUM(X41:X45) -> 0 | Y46: 0 | Z46: 0 | AA46: 0
A48: JUIN
B49: NOM | C49: AC | D49: MP | E49: PSO | F49: PFC | G49: STA | H49: ECH | I49: ENV/MAN DIV | J49: NET | K49: LIMS | L49: PROJET | M49: ESS | N49: AQ | O49: AQ BIL | P49: AQ FORM | Q49: AQ INFO | R49: AQ REDAC | S49: AQ VERIF | T49: AQ REACT | U49: AQ LEAN | V49: AQ MET | W49: CAPACITE REELLE | X49: CONGE | Y49: ABSENCES | Z49: CAPACITE THEORIQUE | AA49: DONT HS indicatif
B50: Semaine (../..) | N50: =SUM(O50:V50) -> 0 | W50: =SUM(C50:N50) -> 0 | Z50: =SUM(W50:Y50)-AA50 -> 0
B51: Semaine (../..) | N51: =SUM(O51:V51) -> 0 | W51: =SUM(C51:N51) -> 0 | Z51: =SUM(W51:Y51)-AA51 -> 0
B52: Semaine (../..) | N52: =SUM(O52:V52) -> 0 | W52: 0 | Z52: 0
B53: Semaine (../..) | N53: =SUM(O53:V53) -> 0 | W53: 0 | Z53: 0
B54: Semaine (../..) | N54: =SUM(O54:V54) -> 0 | W54: 0 | Z54: =SUM(W54:Y54)-AA54 -> 0
B55: TOTAL | C55: =SUM(C50:C54) -> 0 | D55: =SUM(D50:D54) -> 0 | E55: 0 | F55: 0 | G55: 0 | H55: 0 | I55: 0 | J55: 0 | K55: 0 | L55: 0 | M55: 0 | N55: 0 | O55: 0 | P55: 0 | Q55: 0 | R55: 0 | S55: 0 | T55: 0 | U55: 0 | V55: 0 | W55: 0 | X55: =SUM(X50:X54) -> 0 | Y55: 0 | Z55: 0 | AA55: 0
A57: JUILLET
B58: NOM | C58: AC | D58: MP | E58: PSO | F58: PFC | G58: STA | H58: ECH | I58: ENV/MAN DIV | J58: NET | K58: LIMS | L58: PROJET | M58: ESS | N58: AQ | O58: AQ BIL | P58: AQ FORM | Q58: AQ INFO | R58: AQ REDAC | S58: AQ VERIF | T58: AQ REACT | U58: AQ LEAN | V58: AQ MET | W58: CAPACITE REELLE | X58: CONGE | Y58: ABSENCES | Z58: CAPACITE THEORIQUE | AA58: DONT HS indicatif
B59: Semaine (../..) | N59: =SUM(O59:V59) -> 0 | W59: =SUM(C59:N59) -> 0 | Z59: =SUM(W59:Y59)-AA59 -> 0
B60: Semaine (../..) | N60: =SUM(O60:V60) -> 0 | W60: =SUM(C60:N60) -> 0 | Z60: =SUM(W60:Y60)-AA60 -> 0
B61: Semaine (../..) | N61: =SUM(O61:V61) -> 0 | W61: 0 | Z61: 0
B62: Semaine (../..) | N62: =SUM(O62:V62) -> 0 | W62: 0 | Z62: 0
B63: Semaine (../..) | N63: =SUM(O63:V63) -> 0 | W63: 0 | Z63: =SUM(W63:Y63)-AA63 -> 0
B64: TOTAL | C64: =SUM(C59:C63) -> 0 | D64: =SUM(D59:D63) -> 0 | E64: 0 | F64: 0 | G64: 0 | H64: =SUM(H59:H63) -> 0 | I64: =SUM(I59:I63) -> 0 | J64: 0 | K64: 0 | L64: 0 | M64: 0 | N64: 0 | O64: 0 | P64: 0 | Q64: 0 | R64: 0 | S64: 0 | T64: 0 | U64: 0 | V64: 0 | W64: 0 | X64: =SUM(X59:X63) -> 0 | Y64: 0 | Z64: 0 | AA64: 0
A66: AOUT
B67: NOM | C67: AC | D67: MP | E67: PSO | F67: PFC | G67: STA | H67: ECH | I67: ENV/MAN DIV | J67: NET | K67: LIMS | L67: PROJET | M67: ESS | N67: AQ | O67: AQ BIL | P67: AQ FORM | Q67: AQ INFO | R67: AQ REDAC | S67: AQ VERIF | T67: AQ REACT | U67: AQ LEAN | V67: AQ MET | W67: CAPACITE REELLE | X67: CONGE | Y67: ABSENCES | Z67: CAPACITE THEORIQUE | AA67: DONT HS indicatif
B68: Semaine (../..) | N68: =SUM(O68:V68) -> 0 | W68: =SUM(C68:N68) -> 0 | Z68: =SUM(W68:Y68)-AA68 -> 0
B69: Semaine (../..) | N69: =SUM(O69:V69) -> 0 | W69: =SUM(C69:N69) -> 0 | Z69: =SUM(W69:Y69)-AA69 -> 0
B70: Semaine (../..) | N70: =SUM(O70:V70) -> 0 | W70: 0 | Z70: 0
B71: Semaine (../..) | N71: =SUM(O71:V71) -> 0 | W71: 0 | Z71: 0
B72: Semaine (../..) | N72: =SUM(O72:V72) -> 0 | W72: 0 | Z72: =SUM(W72:Y72)-AA72 -> 0
B73: TOTAL | C73: =SUM(C68:C72) -> 0 | D73: =SUM(D68:D72) -> 0 | E73: 0 | F73: 0 | G73: 0 | H73: 0 | I73: 0 | J73: 0 | K73: =SUM(K68:K72) -> 0 | L73: =SUM(L68:L72) -> 0 | M73: 0 | N73: 0 | O73: 0 | P73: 0 | Q73: 0 | R73: 0 | S73: 0 | T73: 0 | U73: 0 | V73: 0 | W73: 0 | X73: =SUM(X68:X72) -> 0 | Y73: 0 | Z73: 0 | AA73: 0
A75: SEPTEMBRE
B76: NOM | C76: AC | D76: MP | E76: PSO | F76: PFC | G76: STA | H76: ECH | I76: ENV/MAN DIV | J76: NET | K76: LIMS | L76: PROJET | M76: ESS | N76: AQ | O76: AQ BIL | P76: AQ FORM | Q76: AQ INFO | R76: AQ REDAC | S76: AQ VERIF | T76: AQ REACT | U76: AQ LEAN | V76: AQ MET | W76: CAPACITE REELLE | X76: CONGE | Y76: ABSENCES | Z76: CAPACITE THEORIQUE | AA76: DONT HS indicatif
B77: Semaine (../..) | N77: =SUM(O77:V77) -> 0 | W77: =SUM(C77:N77) -> 0 | Z77: =SUM(W77:Y77)-AA77 -> 0
B78: Semaine (../..) | N78: =SUM(O78:V78) -> 0 | W78: =SUM(C78:N78) -> 0 | Z78: =SUM(W78:Y78)-AA78 -> 0
B79: Semaine (../..) | N79: =SUM(O79:V79) -> 0 | W79: 0 | Z79: 0
B80: Semaine (../..) | N80: =SUM(O80:V80) -> 0 | W80: 0 | Z80: 0
B81: Semaine (../..) | N81: =SUM(O81:V81) -> 0 | W81: 0 | Z81: =SUM(W81:Y81)-AA81 -> 0
B82: TOTAL | C82: =SUM(C77:C81) -> 0 | D82: =SUM(D77:D81) -> 0 | E82: 0 | F82: 0 | G82: 0 | H82: 0 | I82: 0 | J82: 0 | K82: 0 | L82: 0 | M82: 0 | N82: 0 | O82: 0 | P82: 0 | Q82: 0 | R82: 0 | S82: 0 | T82: 0 | U82: 0 | V82: 0 | W82: 0 | X82: =SUM(X77:X81) -> 0 | Y82: 0 | Z82: 0 | AA82: 0
A84: OCTOBRE
B85: NOM | C85: AC | D85: MP | E85: PSO | F85: PFC | G85: STA | H85: ECH | I85: ENV/MAN DIV | J85: NET | K85: LIMS | L85: PROJET | M85: ESS | N85: AQ | O85: AQ BIL | P85: AQ FORM | Q85: AQ INFO | R85: AQ REDAC | S85: AQ VERIF | T85: AQ REACT | U85: AQ LEAN | V85: AQ MET | W85: CAPACITE REELLE | X85: CONGE | Y85: ABSENCES | Z85: CAPACITE THEORIQUE | AA85: DONT HS indicatif
B86: Semaine (../..) | N86: =SUM(O86:V86) -> 0 | W86: =SUM(C86:N86) -> 0 | Z86: =SUM(W86:Y86)-AA86 -> 0
B87: Semaine (../..) | N87: =SUM(O87:V87) -> 0 | W87: =SUM(C87:N87) -> 0 | Z87: =SUM(W87:Y87)-AA87 -> 0
B88: Semaine (../..) | N88: =SUM(O88:V88) -> 0 | W88: 0 | Z88: 0
B89: Semaine (../..) | N89: =SUM(O89:V89) -> 0 | W89: 0 | Z89: 0
B90: Semaine (../..) | N90: =SUM(O90:V90) -> 0 | W90: 0 | Z90: =SUM(W90:Y90)-AA90 -> 0
B91: TOTAL | C91: =SUM(C86:C90) -> 0 | D91: =SUM(D86:D90) -> 0 | E91: 0 | F91: 0 | G91: 0 | H91: 0 | I91: 0 | J91: 0 | K91: 0 | L91: =SUM(L86:L90) -> 0 | M91: =SUM(M86:M90) -> 0 | N91: 0 | O91: 0 | P91: 0 | Q91: 0 | R91: 0 | S91: 0 | T91: 0 | U91: 0 | V91: 0 | W91: 0 | X91: =SUM(X86:X90) -> 0 | Y91: 0 | Z91: 0 | AA91: 0
A93: NOVEMBRE
B94: NOM | C94: AC | D94: MP | E94: PSO | F94: PFC | G94: STA | H94: ECH | I94: ENV/MAN DIV | J94: NET | K94: LIMS | L94: PROJET | M94: ESS | N94: AQ | O94: AQ BIL | P94: AQ FORM | Q94: AQ INFO | R94: AQ REDAC | S94: AQ VERIF | T94: AQ REACT | U94: AQ LEAN | V94: AQ MET | W94: CAPACITE REELLE | X94: CONGE | Y94: ABSENCES | Z94: CAPACITE THEORIQUE | AA94: DONT HS indicatif
B95: Semaine (../..) | N95: =SUM(O95:V95) -> 0 | W95: =SUM(C95:N95) -> 0 | Z95: =SUM(W95:Y95)-AA95 -> 0
B96: Semaine (../..) | N96: =SUM(O96:V96) -> 0 | W96: =SUM(C96:N96) -> 0 | Z96: =SUM(W96:Y96)-AA96 -> 0
B97: Semaine (../..) | N97: =SUM(O97:V97) -> 0 | W97: 0 | Z97: 0
B98: Semaine (../..) | N98: =SUM(O98:V98) -> 0 | W98: 0 | Z98: 0
B99: Semaine (../..) | N99: =SUM(O99:V99) -> 0 | W99: 0 | Z99: =SUM(W99:Y99)-AA99 -> 0
B100: TOTAL | C100: =SUM(C95:C99) -> 0 | D100: =SUM(D95:D99) -> 0 | E100: 0 | F100: 0 | G100: 0 | H100: 0 | I100: 0 | J100: 0 | K100: 0 | L100: 0 | M100: 0 | N100: 0 | O100: 0 | P100: 0 | Q100: 0 | R100: 0 | S100: 0 | T100: 0 | U100: 0 | V100: 0 | W100: 0 | X100: =SUM(X95:X99) -> 0 | Y100: 0 | Z100: 0 | AA100: 0
A102: DECEMBRE
B103: NOM | C103: AC | D103: MP | E103: PSO | F103: PFC | G103: STA | H103: ECH | I103: ENV/MAN DIV | J103: NET | K103: LIMS | L103: PROJET | M103: ESS | N103: AQ | O103: AQ BIL | P103: AQ FORM | Q103: AQ INFO | R103: AQ REDAC | S103: AQ VERIF | T103: AQ REACT | U103: AQ LEAN | V103: AQ MET | W103: CAPACITE REELLE | X103: CONGE | Y103: ABSENCES | Z103: CAPACITE THEORIQUE | AA103: DONT HS indicatif
B104: Semaine (../..) | N104: =SUM(O104:V104) -> 0 | W104: =SUM(C104:N104) -> 0 | Z104: =SUM(W104:Y104)-AA104 -> 0
B105: Semaine (../..) | N105: =SUM(O105:V105) -> 0 | W105: =SUM(C105:N105) -> 0 | Z105: =SUM(W105:Y105)-AA105 -> 0
B106: Semaine (../..) | N106: =SUM(O106:V106) -> 0 | W106: 0 | Z106: 0
B107: Semaine (../..) | N107: =SUM(O107:V107) -> 0 | W107: 0 | Z107: 0
B108: Semaine (../..) | N108: =SUM(O108:V108) -> 0 | W108: =SUM(C108:N108) -> 0 | Z108: =SUM(W108:Y108)-AA108 -> 0
B109: TOTAL | C109: =SUM(C104:C108) -> 0 | D109: =SUM(D104:D108) -> 0 | E109: 0 | F109: 0 | G109: 0 | H109: 0 | I109: 0 | J109: 0 | K109: =SUM(K104:K108) -> 0 | L109: =SUM(L104:L108) -> 0 | M109: 0 | N109: 0 | O109: 0 | P109: 0 | Q109: 0 | R109: 0 | S109: 0 | T109: 0 | U109: 0 | V109: 0 | W109: 0 | X109: =SUM(X104:X108) -> 0 | Y109: 0 | Z109: 0 | AA109: 0

Sheet BILAN PC
A1: Bilan Physico-Chimie
A2: (Sans JH / Sga / HG / SM / VM et CCE (CDD))
C3: 10 Titulaires + 2 Intérimaires + 1CDD= 13 personnes soit une capacité théorique de 2028 h
C4: Capacité réelle: 1951h
B6: AC | C6: MP | D6: PSO | E6: PFC | F6: STA | G6: ECH | H6: ENV | I6: NET | J6: LIMS | K6: PROJET | L6: ESS | M6: AQ | N6: AQ BIL | O6: AQ FORM | P6: AQ INFO | Q6: AQ REDAC | R6: AQ VERIF | S6: AQ REACT | T6: AQ LEAN | U6: AQ MET | V6: CAP REELLE | W6: CONGE | X6: ABSENCES | Y6: CAP. THEO. | Z6: HS
A7: JANVIER | B7: =SUM(#REF!+#REF!+#REF!+#REF!+#REF!+#REF!+#REF!+#REF!+#REF!+#REF!+#REF!+#REF!) ->  | C7: =SUM(#REF!+#REF!+#REF!+#REF!+#REF!+#REF!+#REF!+#REF!+#REF!+#REF!+#REF!+#REF!) ->  | D7: =SUM(#REF!+#REF!+#REF!+#REF!+#REF!+#REF!+#REF!+#REF!+#REF!+#REF!+#REF!+#REF!) ->  | E7: =SUM(#REF!+#REF!+#REF!+#REF!+#REF!+#REF!+#REF!+#REF!+#REF!+#REF!+#REF!+#REF!) ->  | F7: =SUM(#REF!+#REF!+#REF!+#REF!+#REF!+#REF!+#REF!+#REF!+#REF!+#REF!+#REF!+#REF!) ->  | G7: =SUM(#REF!+#REF!+#REF!+#REF!+#REF!+#REF!+#REF!+#REF!+#REF!+#REF!+#REF!+#REF!) ->  | H7: =SUM(#REF!+#REF!+#REF!+#REF!+#REF!+#REF!+#REF!+#REF!+#REF!+#REF!+#REF!+#REF!) ->  | I7: =SUM(#REF!+#REF!+#REF!+#REF!+#REF!+#REF!+#REF!+#REF!+#REF!+#REF!+#REF!+#REF!) ->  | J7: =SUM(#REF!+#REF!+#REF!+#REF!+#REF!+#REF!+#REF!+#REF!+#REF!+#REF!+#REF!+#REF!) ->  | K7: =SUM(#REF!+#REF!+#REF!+#REF!+#REF!+#REF!+#REF!+#REF!+#REF!+#REF!+#REF!+#REF!) ->  | L7: =SUM(#REF!+#REF!+#REF!+#REF!+#REF!+#REF!+#REF!+#REF!+#REF!+#REF!+#REF!+#REF!) ->  | M7: =SUM(#REF!+#REF!+#REF!+#REF!+#REF!+#REF!+#REF!+#REF!+#REF!+#REF!+#REF!+#REF!) ->  | N7: =SUM(#REF!+#REF!+#REF!+#REF!+#REF!+#REF!+#REF!+#REF!+#REF!+#REF!+#REF!+#REF!) ->  | O7: =SUM(#REF!+#REF!+#REF!+#REF!+#REF!+#REF!+#REF!+#REF!+#REF!+#REF!+#REF!+#REF!) ->  | P7: =SUM(#REF!+#REF!+#REF!+#REF!+#REF!+#REF!+#REF!+#REF!+#REF!+#REF!+#REF!+#REF!) ->  | Q7: =SUM(#REF!+#REF!+#REF!+#REF!+#REF!+#REF!+#REF!+#REF!+#REF!+#REF!+#REF!+#REF!) ->  | R7: =SUM(#REF!+#REF!+#REF!+#REF!+#REF!+#REF!+#REF!+#REF!+#REF!+#REF!+#REF!+#REF!) ->  | S7: =SUM(#REF!+#REF!+#REF!+#REF!+#REF!+#REF!+#REF!+#REF!+#REF!+#REF!+#REF!+#REF!) ->  | T7: =SUM(#REF!+#REF!+#REF!+#REF!+#REF!+#REF!+#REF!+#REF!+#REF!+#REF!+#REF!+#REF!) ->  | U7: =SUM(#REF!+#REF!+#REF!+#REF!+#REF!+#REF!+#REF!+#REF!+#REF!+#REF!+#REF!+#REF!) ->  | V7: =SUM(#REF!+#REF!+#REF!+#REF!+#REF!+#REF!+#REF!+#REF!+#REF!+#REF!+#REF!+#REF!) ->  | W7: =SUM(#REF!+#REF!+#REF!+#REF!+#REF!+#REF!+#REF!+#REF!+#REF!+#REF!+#REF!+#REF!) ->  | X7: =SUM(#REF!+#REF!+#REF!+#REF!+#REF!+#REF!+#REF!+#REF!+#REF!+#REF!+#REF!+#REF!) ->  | Y7: =SUM(#REF!+#REF!+#REF!+#REF!+#REF!+#REF!+#REF!+#REF!+#REF!+#REF!+#REF!+#REF!) ->  | Z7: =SUM(#REF!+#REF!+#REF!+#REF!+#REF!+#REF!+#REF!+#REF!+#REF!+#REF!+#REF!+#REF!) -> 
A8: FEVRIER | B8: =#REF!+#REF!+#REF!+#REF!+#REF!+#REF!+#REF!+#REF!+#REF!+#REF!+#REF!+#REF! ->  | C8: =#REF!+#REF!+#REF!+#REF!+#REF!+#REF!+#REF!+#REF!+#REF!+#REF!+#REF!+#REF! ->  | D8: =#REF!+#REF!+#REF!+#REF!+#REF!+#REF!+#REF!+#REF!+#REF!+#REF!+#REF!+#REF! ->  | E8: =#REF!+#REF!+#REF!+#REF!+#REF!+#REF!+#REF!+#REF!+#REF!+#REF!+#REF!+#REF! ->  | F8: =#REF!+#REF!+#REF!+#REF!+#REF!+#REF!+#REF!+#REF!+#REF!+#REF!+#REF!+#REF! ->  | G8: =#REF!+#REF!+#REF!+#REF!+#REF!+#REF!+#REF!+#REF!+#REF!+#REF!+#REF!+#REF! ->  | H8: =#REF!+#REF!+#REF!+#REF!+#REF!+#REF!+#REF!+#REF!+#REF!+#REF!+#REF!+#REF! ->  | I8: =#REF!+#REF!+#REF!+#REF!+#REF!+#REF!+#REF!+#REF!+#REF!+#REF!+#REF!+#REF! ->  | J8: =#REF!+#REF!+#REF!+#REF!+#REF!+#REF!+#REF!+#REF!+#REF!+#REF!+#REF!+#REF! ->  | L8: 192.25 | M8: =#REF!+#REF!+#REF!+#REF!+#REF!+#REF!+#REF!+#REF!+#REF!+#REF!+#REF!+#REF! ->  | N8: =#REF!+#REF!+#REF!+#REF!+#REF!+#REF!+#REF!+#REF!+#REF!+#REF!+#REF!+#REF! ->  | O8: =#REF!+#REF!+#REF!+#REF!+#REF!+#REF!+#REF!+#REF!+#REF!+#REF!+#REF!+#REF! ->  | P8: =#REF!+#REF!+#REF!+#REF!+#REF!+#REF!+#REF!+#REF!+#REF!+#REF!+#REF!+#REF! ->  | Q8: =#REF!+#REF!+#REF!+#REF!+#REF!+#REF!+#REF!+#REF!+#REF!+#REF!+#REF!+#REF! ->  | R8: =#REF!+#REF!+#REF!+#REF!+#REF!+#REF!+#REF!+#REF!+#REF!+#REF!+#REF!+#REF! ->  | S8: =#REF!+#REF!+#REF!+#REF!+#REF!+#REF!+#REF!+#REF!+#REF!+#REF!+#REF!+#REF! ->  | T8: =#REF!+#REF!+#REF!+#REF!+#REF!+#REF!+#REF!+#REF!+#REF!+#REF!+#REF!+#REF! ->  | U8: =#REF!+#REF!+#REF!+#REF!+#REF!+#REF!+#REF!+#REF!+#REF!+#REF!+#REF!+#REF! ->  | V8: =#REF!+#REF!+#REF!+#REF!+#REF!+#REF!+#REF!+#REF!+#REF!+#REF!+#REF!+#REF! ->  | W8: =#REF!+#REF!+#REF!+#REF!+#REF!+#REF!+#REF!+#REF!+#REF!+#REF!+#REF!+#REF! ->  | X8: =#REF!+#REF!+#REF!+#REF!+#REF!+#REF!+#REF!+#REF!+#REF!+#REF!+#REF!+#REF! ->  | Y8: =#REF!+#REF!+#REF!+#REF!+#REF!+#REF!+#REF!+#REF!+#REF!+#REF!+#REF!+#REF! ->  | Z8: =#REF!+#REF!+#REF!+#REF!+#REF!+#REF!+#REF!+#REF!+#REF!+#REF!+#REF!+#REF! -> 
A13: BILAN ACTIVITE PHYSICO-CHIMIE JANVIER 2016
A15: 10 Titulaires + 2 Intérimaires = 12 techniciens
A16: soit une capacité théorique de 1872 h
A17: Capacité réelle: 1803 h
B19: Temps standards | C19: Temps réels
A20: Matières Premières | B20: 569.5 | C20: 476
A21: Produits Finis | B21: 845 | C21: 487
A22: Assurance Qualité | B22: 600 (1806 × 0.333) | C22: 483
A23: Articles de conditionnement | C23: 11.75
A24: Nettoyage (aide laverie) | C24: 2.75
A25: LIMS | C25: 55.25
C26: =SUM(C20:C25) -> 1515.75
B28: Ressources supplémentaires (Capacité réelle) | C28: 306
A29: ESSAI | C29: 149
A30: PROJ | C30: 58.75
A31: STAB Elidel | C31: 79.5
B32: Activité hors routine (Fichier joint) | C32: =SUM(C29:C31) -> 287.25
B36: Somme des heures | C36: =SUM(C20:C25,C29:C31) -> 1803
A38: SGA et JH le 08/02/2016
A40: BILAN ACTIVITE PHYSICO-CHIMIE FEVRIER 2016
A42: 10 Titulaires + 2 Intérimaires = 12 techniciens
A43: soit une capacité théorique en H | B43: 1897
A44: Capacité réelle: | B44: 1647
B46: Temps standards | C46: Temps réels | E46: Remarques: Les temps réels sont issus du déclaratif des feuilles d'imputation. Les différences observables entre les temps standards et les temps déclarés sont dus: -Au regroupement de lots pour les MP et pour les PF. -Aux sous traitances, les analyses au CQ sont faites sur un mois, la sous-traitance le mois suivant, la libération dans le mois de la réception de la sous traitance. -Les matières analysées en fin de mois sont très souvent libérées sur le mois suivant. Conclusion: Ce mois ci les ressources supplémentaires ont permis d'absorber le travail en dehors de la routine et à pallier aux heures de CP de l'équipe, ce qui nous a permis de pouvoir répondre à tous nos clients dans les délais.
A47: Matières Premières | B47: 458 | C47: 350.75
A48: Produits Finis | B48: 1141 | C48: 667.75
A49: Assurance Qualité | B49: 548.5 (1647 × 0.333) | C49: 390
A50: Articles de conditionnement | C50: 9.75
A51: Nettoyage (aide laverie) | C51: 0
A52: LIMS | C52: 13
C53: =SUM(C47:C52) -> 1431.25
B55: Ressources supplémentaires (Capacité réelle) | C55: 306
A56: ESSAI | C56: 192
A57: STAB Elidel | C57: 24.25
B58: Activité hors routine (Fichier joint) | C58: =SUM(C56:C57) -> 216.25
C60: =C53+C58 -> 1647.5
A61: SGA et JH le 03/03/2016

Sheet Noms
A1: Nom | B1: Activité | D1: Activites
A2: ABAD | B2: PHYSICO-CHIMIE | D2: PRELEV. AC
A3: BAH | B3: PHYSICO-CHIMIE | D3: PHYSICO-CHIMIE
A4: BARSACQ | B4: MICROBIOLOGIE | D4: AGENT DE LAVERIE
A5: BERNADOU | B5: PHYSICO-CHIMIE | D5: MICROBIOLOGIE
A6: BONNEMORE | B6: PRELEV. AC | D6: CONT FINAL
A7: BOUGHIDAH | B7: MICROBIOLOGIE
A8: BOULESTIN | B8: PHYSICO-CHIMIE
A9: CAVAILLE | B9: PHYSICO-CHIMIE
A10: CERVEAUX | B10: PHYSICO-CHIMIE
A11: CRON | B11: PHYSICO-CHIMIE
A12: EPRON | B12: PRELEV. AC
A13: GASNIER | B13: PHYSICO-CHIMIE
A14: GROUT | B14: MICROBIOLOGIE
A15: GUEGUEN | B15: PHYSICO-CHIMIE
A16: HERVE | B16: PHYSICO-CHIMIE
A17: LABEQUE | B17: PHYSICO-CHIMIE
A18: LAFAYE | B18: PHYSICO-CHIMIE
A19: MARCHETTI | B19: MICROBIOLOGIE
A20: MARRON | B20: PHYSICO-CHIMIE
A21: MASSY | B21: PHYSICO-CHIMIE
A22: MAUPEU | B22: MICROBIOLOGIE
A23: MERCIER | B23: PHYSICO-CHIMIE
A24: MICHELET | B24: PHYSICO-CHIMIE
A25: MONGIE | B25: PHYSICO-CHIMIE
A26: MORNET | B26: MICROBIOLOGIE
A27: PANATIER | B27: MICROBIOLOGIE
A28: PIQUET | B28: CONT FINAL
A29: QUESADA | B29: PHYSICO-CHIMIE
A30: RODRIGUES | B30: AGENT DE LAVERIE
A31: SAVINOT | B31: MICROBIOLOGIE
A32: VEYSSIERE | B32: PRELEV. AC
